{"text_format":"1","workbook":"xlsx","n_sheets":3,"sheets":["Equity","Equity-Futures","Locked"],"not_rendered":{"charts":0,"images":0,"macros":1,"external_links":0,"defined_names":2,"comments":0,"pivot_tables":0},"unopened":[],"bounds":{"document_bytes":16777216,"sheet_cells":100000,"rows_first":2000,"rows_last":500,"rows_between":2000,"halvings":0,"cell_chars":16384,"cell_head_chars":4096},"cells_cut":0,"cells_raw":0,"read":"whole","date_system":"1900"}

{"sheet":"Equity","index":0,"n_rows":31,"n_cols":12,"rows_kept":31,"cut":false,"hidden":false,"merged":[]}
["Equity","Equity (Locked)","Category","Day-Trade Min",null,"Day-Trade Max",null,null,null,null,null,"d"]
[null,null,"Social Tokens",10,{"$f":"IF($A$2:$B$2>=D2, \"✔️\", \"❌\")","v":{"$error":"#VALUE!"}},1000,{"$f":"IF($A$2>=F2, \"✔️\", \"❌\")","v":"❌"}]
[null,null,"In-Game Assets",20,{"$f":"IF($A$2>=D3, \"✔️\", \"❌\")","v":"❌"},1000,"❌"]
[null,null,"Nfts",50,"❌",10000,"❌"]
[null,null,"Prediction Markets",50,"❌",5000,"❌"]
[null,null,"Crypto",100,"❌",5000,"❌"]
[null,null,"Domain Names",100,"❌",5000,"❌"]
[null,null,"Forex",100,"❌",1000,"❌"]
[null,null,"Memorabilia",100,"❌",5000,"❌"]
[null,null,"Fashion (Sneakers, Apparel, Accessories)",200,"❌",5000,"❌"]
[null,null,"Digital Art Funds",500,"❌",5000,"❌"]
[null,null,"Futures (Incl. Commodities)",500,"❌",5000,"❌"]
[null,null,"Gold & Bullion",500,"❌",20000,"❌"]
[null,null,"Index Cfds",500,"❌",5000,"❌"]
[null,null,"Options",500,"❌",5000,"❌"]
[null,null,"Physical Products (Clothing, Etc.)",500,"❌",5000,"❌"]
[null,null,"Wine & Spirits",500,"❌",5000,"❌"]
[null,null,"Art",1000,"❌",100000,"❌"]
[null,null,"Bonds (Government, Corporate, Junk)",1000,"❌",10000,"❌"]
[null,null,"Carbon Credits",1000,"❌",10000,"❌"]
[null,null,"Luxury Watches",1000,"❌",10000,"❌"]
[null,null,"Music",1000,"❌",10000,"❌"]
[null,null,"Stocks",1000,"❌",25000,"❌"]
[null,null,"Weather Derivatives",1000,"❌",10000,"❌"]
[null,null,"Shipping Containers",2000,"❌",10000,"❌"]
[null,null,"Cars",5000,"❌",30000,"❌"]
[null,null,"Royalties (Books, Patents, IP)",5000,"❌",25000,"❌"]
[null,null,"Structured Products",5000,"❌",25000,"❌"]
[null,null,"Startup Equity",10000,"❌",50000,"❌"]
[null,null,"Litigation Finance",20000,"❌","∞","❌"]
[null,null,"Real Estate",100000,"❌","∞","❌"]

{"sheet":"Equity-Futures","index":1,"n_rows":461,"n_cols":42,"rows_kept":461,"cut":false,"hidden":false,"merged":[[0,34,24,34],[0,4,24,4],[0,18,24,18],[0,0,24,0],[0,26,24,26],[0,7,0,8],[0,9,0,10],[0,19,0,20],[0,14,0,15]]}
["Equity","Instruments 14:30","Initial Margin","< $4k","Screening","Time (F9)","Macro - News","Indicators",null,"Ident",null,"Price Movement","Pattern/Setup","Fundamentals","Watchlist",null,null,null,"Order Entry","Bias",null,"Symbol","Candle Length(s)","Time in Hold",null,null,"Data - Live",null,null,null,null,null,null,null,"Data - Historical (NinjaTrader -> Export -> Paste)","datetime","open","high","low","close","volume","tr"]
[null,"/GCQ25:XCME",null,{"$f":"IF(C2 < 4000, \"✔\", \"❌\")","v":"✔"},null,{"$f":"NOW()","v":45834.333583217594},"elon x","LAST",{"$f":"RTD(\"tos.rtd\", , \"LAST\", V2)","v":""},"Price/VWAP (C)",{"$f":"IF(I2>I4, 1, -1)","v":{"$error":"#DIV/0!"}},"Channels",null,null,"/MNQU25:XCME",{"$f":"RTD(\"tos.rtd\", , \"PERCENT_CHANGE\", O2)","v":"+0.07%"},null,null,null,"[Bullish/Bearish]",{"$f":"SUM(K2:K1048576)","v":{"$error":"#DIV/0!"}},1,null,null,null,null,null,null,null,null,null,null,null,null,null,"20250626 040100",22495.25,22497.25,22494.5,22495.5,88,{"$f":"MAX(AL2 - AM2, ABS(AL2 - AN1), ABS(AM2 - AN1))","v":{"$error":"#VALUE!"}}]
[null,"/MFSM25:XCME",null,"✔",null,null,"trump x","VOLUME",{"$f":"RTD(\"tos.rtd\", , \"VOLUME\", V2)","v":""},"Price/VWAP (ToS/NT)",null,"High",null,null,"/ESU25:XCME",{"$f":"RTD(\"tos.rtd\", , \"PERCENT_CHANGE\", O3)","v":"+0.04%"},null,null,null,null,null,null,null,null,null,null,null,null,null,null,null,null,null,null,null,"20250626 040200",22494.75,22495.75,22492.75,22493.75,123,{"$f":"MAX(AL3 - AM3, ABS(AL3 - AN2), ABS(AM3 - AN2))","v":3}]
[null,"/MFSU25:XCME",null,"✔",null,null,"powell x","VWAP (Custom)",{"$f":"SUMPRODUCT(AD2:AD1000, AC2:AC1000) / SUM(AC2:AC1000)","v":{"$error":"#DIV/0!"}},null,null,"Low",null,null,"AAPL",{"$f":"RTD(\"tos.rtd\", , \"PERCENT_CHANGE\", O4)","v":"+0.63%"},null,null,null,null,null,null,null,null,null,null,null,null,null,null,null,null,null,null,null,"20250626 040300",22493.75,22495.75,22493.75,22494.75,114,2]
[null,"/MGCQ25:XCME",null,"✔",null,null,"forexfactory","LiveATR(10)",null,null,null,"[Chad]",null,null,"TSLA",{"$f":"RTD(\"tos.rtd\", , \"PERCENT_CHANGE\", O5)","v":"-3.79%"},null,null,null,null,null,null,null,null,null,null,null,null,null,null,null,null,null,null,null,"20250626 040400",22494.25,22494.75,22490.25,22490.75,183,4.5]
[null,"/MMEM25:XCME",null,"✔",null,null,"WSJ","ATR(10)",null,null,null,"[ICT]",null,null,"SPY",{"$f":"RTD(\"tos.rtd\", , \"PERCENT_CHANGE\", O6)","v":"+0.06%"},null,null,null,"Time in Hold (Suggestion","Entry (Suggestion)","Entry","Exit (Suggestion)","Max Fluctuation","Exit","PnL",null,null,null,null,null,null,null,null,null,"20250626 040500",22490.75,22492.5,22489.5,22491.5,202,3]
[null,"/MMEU25:XCME",null,"✔",null,null,"Barron's",null,null,null,null,null,null,null,"sectors",null,null,null,null,null,{"$f":"I2-(U2*0.5*I5)","v":{"$error":"#VALUE!"}},null,{"$f":"I2+(U2*1*I5)","v":{"$error":"#VALUE!"}},null,null,null,null,null,null,null,null,null,null,null,null,"20250626 040600",22491.5,22492.5,22491,22491.75,58,1.5]
[null,"/MYMM25:XCME",null,"✔",null,null,"MarketWatch",null,null,null,null,null,null,null,"indices",null,null,null,null,null,null,null,null,null,null,null,null,null,null,null,null,null,null,null,null,"20250626 040700",22492,22495.25,22490.75,22495,160,4.5]
[null,"/MYMU25:XCME",null,"✔",null,null,"Yahoo Finance",null,null,null,null,null,null,null,"etfs",null,null,null,null,null,null,null,null,null,null,null,null,null,null,null,null,null,null,null,null,"20250626 040800",22494.75,22495.25,22494.25,22494.5,60,1]
[null,"/YMM25:XCME",null,"✔",null,null,"[Thinkorswim Calendar/Economic Calendar/News]",null,null,null,null,null,null,null,"stocks",null,null,null,null,null,null,null,null,null,null,null,null,null,null,null,null,null,null,null,null,"20250626 040900",22494.75,22495,22492.75,22494,123,2.25]
[null,"/YMU25:XCME",null,"✔",null,null,"Inner Circle Trader Telegram",null,null,null,null,null,null,null,"futures",null,null,null,null,null,null,null,null,null,null,null,null,null,null,null,null,null,null,null,null,"20250626 041000",22494.25,22496,22492.5,22495.75,61,3.5]
[null,"/MNQU25:XCME",3418,"✔",null,null,"[Shisha Traders Discord]",null,null,null,null,null,null,null,null,null,null,null,null,null,null,null,null,null,null,null,null,null,null,null,null,null,null,null,null,"20250626 041100",22495.5,22499.75,22495.25,22496.25,287,4.5]
[null,"/ESU25:XCME",1870,"✔",null,null,"CNN",null,null,null,null,null,null,null,null,null,null,null,null,null,null,null,null,null,null,null,null,null,null,null,null,null,null,null,null,"20250626 041200",22496.25,22496.25,22495.5,22495.75,74,0.75]
[null,"/MNQM25:XCME",3418,"✔",null,null,null,null,null,null,null,null,null,null,null,null,null,null,null,null,null,null,null,null,null,null,null,null,null,null,null,null,null,null,null,"20250626 041300",22495.5,22497,22494.5,22495.75,80,2.5]
[null,"/ESM25:XCME",1870,"✔",null,null,null,null,null,null,null,null,null,null,null,null,null,null,null,null,null,null,null,null,null,null,null,null,null,null,null,null,null,null,null,"20250626 041400",22495.5,22496.75,22495.25,22496.75,64,1.5]
[null,"/NQU25:XCME",34183,"❌",null,null,null,null,null,null,null,null,null,null,null,null,null,null,null,null,null,null,null,null,null,null,null,null,null,null,null,null,null,null,null,"20250626 041500",22496,22498.25,22495.75,22495.75,111,2.5]
[null,"/NQM25:XCME",34183,"❌",null,null,null,null,null,null,null,null,null,null,null,null,null,null,null,null,null,null,null,null,null,null,null,null,null,null,null,null,null,null,null,"20250626 041600",22496.75,22498.25,22495.5,22497.5,141,2.75]
[null,"/MESU25:XCME",2367,"✔",null,null,null,null,null,null,null,null,null,null,null,null,null,null,null,null,null,null,null,null,null,null,null,null,null,null,null,null,null,null,null,"20250626 041700",22497.25,22498.25,22496.25,22497,81,2]
[null,"/MBTM25:XCME",3058,"✔",null,null,null,null,null,null,null,null,null,null,null,null,null,null,null,null,null,null,null,null,null,null,null,null,null,null,null,null,null,null,null,"20250626 041800",22496.75,22497,22493.75,22494.25,169,3.25]
[null,"/MESM25:XCME",2367,"✔",null,null,null,null,null,null,null,null,null,null,null,null,null,null,null,null,null,null,null,null,null,null,null,null,null,null,null,null,null,null,null,"20250626 041900",22494.5,22495.75,22494,22495.5,51,1.75]
[null,"/NIYU25:XCME",null,"✔",null,null,null,null,null,null,null,null,null,null,null,null,null,null,null,null,null,null,null,null,null,null,null,null,null,null,null,null,null,null,null,"20250626 042000",22495,22495,22492.75,22493,72,2.75]
[null,"/RTYU25:XCME",10202,"❌",null,null,null,null,null,null,null,null,null,null,null,null,null,null,null,null,null,null,null,null,null,null,null,null,null,null,null,null,null,null,null,"20250626 042100",22492.75,22493.75,22492,22493,89,1.75]
[null,"/BTCM25:XCME",152581,"❌",null,null,null,null,null,null,null,null,null,null,null,null,null,null,null,null,null,null,null,null,null,null,null,null,null,null,null,null,null,null,null,"20250626 042200",22493,22493.5,22492.25,22492.75,59,1.25]
[null,"/RTYM25:XCME",10202,"❌",null,null,null,null,null,null,null,null,null,null,null,null,null,null,null,null,null,null,null,null,null,null,null,null,null,null,null,null,null,null,null,"20250626 042300",22492.75,22494,22489.75,22493.5,283,4.25]
[null,"/MBTN25:XCME",3058,"✔",null,null,null,null,null,null,null,null,null,null,null,null,null,null,null,null,null,null,null,null,null,null,null,null,null,null,null,null,null,null,null,"20250626 042400",22493.5,22494.25,22492.5,22493.75,64,1.75]
[null,null,null,null,null,null,null,null,null,null,null,null,null,null,null,null,null,null,null,null,null,null,null,null,null,null,null,null,null,null,null,null,null,null,null,"20250626 042500",22493.5,22493.75,22491.25,22492,60,2.5]
[null,null,null,null,null,null,null,null,null,null,null,null,null,null,null,null,null,null,null,null,null,null,null,null,null,null,null,null,null,null,null,null,null,null,null,"20250626 042600",22491.25,22492.25,22491,22491.75,56,1.25]
[null,null,null,null,null,null,null,null,null,null,null,null,null,null,null,null,null,null,null,null,null,null,null,null,null,null,null,null,null,null,null,null,null,null,null,"20250626 042700",22492,22494.25,22491.25,22493.75,85,3]
[null,null,null,null,null,null,null,null,null,null,null,null,null,null,null,null,null,null,null,null,null,null,null,null,null,null,null,null,null,null,null,null,null,null,null,"20250626 042800",22493.75,22495.75,22493,22495.25,107,2.75]
[null,null,null,null,null,null,null,null,null,null,null,null,null,null,null,null,null,null,null,null,null,null,null,null,null,null,null,null,null,null,null,null,null,null,null,"20250626 042900",22495,22497.75,22494.5,22494.75,188,3.25]
[null,null,null,null,null,null,null,null,null,null,null,null,null,null,null,null,null,null,null,null,null,null,null,null,null,null,null,null,null,null,null,null,null,null,null,"20250626 043000",22494.75,22497.75,22494,22495.75,167,3.75]
[null,null,null,null,null,null,null,null,null,null,null,null,null,null,null,null,null,null,null,null,null,null,null,null,null,null,null,null,null,null,null,null,null,null,null,"20250626 043100",22496.25,22498,22496,22497.5,50,2.25]
[null,null,null,null,null,null,null,null,null,null,null,null,null,null,null,null,null,null,null,null,null,null,null,null,null,null,null,null,null,null,null,null,null,null,null,"20250626 043200",22497.5,22499,22497,22497.25,124,2]
[null,null,null,null,null,null,null,null,null,null,null,null,null,null,null,null,null,null,null,null,null,null,null,null,null,null,null,null,null,null,null,null,null,null,null,"20250626 043300",22497.25,22497.25,22495,22495.25,59,2.25]
[null,null,null,null,null,null,null,null,null,null,null,null,null,null,null,null,null,null,null,null,null,null,null,null,null,null,null,null,null,null,null,null,null,null,null,"20250626 043400",22496.25,22496.75,22495.75,22496.25,35,1.5]
[null,null,null,null,null,null,null,null,null,null,null,null,null,null,null,null,null,null,null,null,null,null,null,null,null,null,null,null,null,null,null,null,null,null,null,"20250626 043500",22495.75,22497,22495.75,22496.75,27,1.25]
[null,null,null,null,null,null,null,null,null,null,null,null,null,null,null,null,null,null,null,null,null,null,null,null,null,null,null,null,null,null,null,null,null,null,null,"20250626 043600",22497,22497,22496,22496,53,1]
[null,null,null,null,null,null,null,null,null,null,null,null,null,null,null,null,null,null,null,null,null,null,null,null,null,null,null,null,null,null,null,null,null,null,null,"20250626 043700",22496,22497,22495.5,22495.5,31,1.5]
[null,null,null,null,null,null,null,null,null,null,null,null,null,null,null,null,null,null,null,null,null,null,null,null,null,null,null,null,null,null,null,null,null,null,null,"20250626 043800",22495.75,22496.75,22495.75,22496.25,48,1.25]
[null,null,null,null,null,null,null,null,null,null,null,null,null,null,null,null,null,null,null,null,null,null,null,null,null,null,null,null,null,null,null,null,null,null,null,"20250626 043900",22496.5,22497,22496,22496,32,1]
[null,null,null,null,null,null,null,null,null,null,null,null,null,null,null,null,null,null,null,null,null,null,null,null,null,null,null,null,null,null,null,null,null,null,null,"20250626 044000",22495.75,22496.25,22494.75,22495.75,46,1.5]
[null,null,null,null,null,null,null,null,null,null,null,null,null,null,null,null,null,null,null,null,null,null,null,null,null,null,null,null,null,null,null,null,null,null,null,"20250626 044100",22495.5,22497.75,22495.5,22497,66,2.25]
[null,null,null,null,null,null,null,null,null,null,null,null,null,null,null,null,null,null,null,null,null,null,null,null,null,null,null,null,null,null,null,null,null,null,null,"20250626 044200",22497.5,22500.25,22497.5,22499.25,157,3.25]
[null,null,null,null,null,null,null,null,null,null,null,null,null,null,null,null,null,null,null,null,null,null,null,null,null,null,null,null,null,null,null,null,null,null,null,"20250626 044300",22499.25,22500,22498.5,22499,83,1.5]
[null,null,null,null,null,null,null,null,null,null,null,null,null,null,null,null,null,null,null,null,null,null,null,null,null,null,null,null,null,null,null,null,null,null,null,"20250626 044400",22499,22503.25,22497.75,22502.75,275,5.5]
[null,null,null,null,null,null,null,null,null,null,null,null,null,null,null,null,null,null,null,null,null,null,null,null,null,null,null,null,null,null,null,null,null,null,null,"20250626 044500",22502.75,22503.5,22501,22502,168,2.5]
[null,null,null,null,null,null,null,null,null,null,null,null,null,null,null,null,null,null,null,null,null,null,null,null,null,null,null,null,null,null,null,null,null,null,null,"20250626 044600",22502,22503.5,22501.25,22503.25,94,2.25]
[null,null,null,null,null,null,null,null,null,null,null,null,null,null,null,null,null,null,null,null,null,null,null,null,null,null,null,null,null,null,null,null,null,null,null,"20250626 044700",22503.25,22504.5,22502.5,22502.75,179,2]
[null,null,null,null,null,null,null,null,null,null,null,null,null,null,null,null,null,null,null,null,null,null,null,null,null,null,null,null,null,null,null,null,null,null,null,"20250626 044800",22502.75,22502.75,22500.5,22501,84,2.25]
[null,null,null,null,null,null,null,null,null,null,null,null,null,null,null,null,null,null,null,null,null,null,null,null,null,null,null,null,null,null,null,null,null,null,null,"20250626 044900",22501,22501.25,22497.75,22498,99,3.5]
[null,null,null,null,null,null,null,null,null,null,null,null,null,null,null,null,null,null,null,null,null,null,null,null,null,null,null,null,null,null,null,null,null,null,null,"20250626 045000",22497.75,22499.25,22496.75,22498.5,114,2.5]
[null,null,null,null,null,null,null,null,null,null,null,null,null,null,null,null,null,null,null,null,null,null,null,null,null,null,null,null,null,null,null,null,null,null,null,"20250626 045100",22498.75,22498.75,22497.25,22497.75,52,1.5]
[null,null,null,null,null,null,null,null,null,null,null,null,null,null,null,null,null,null,null,null,null,null,null,null,null,null,null,null,null,null,null,null,null,null,null,"20250626 045200",22498.5,22500,22498.5,22500,94,2.25]
[null,null,null,null,null,null,null,null,null,null,null,null,null,null,null,null,null,null,null,null,null,null,null,null,null,null,null,null,null,null,null,null,null,null,null,"20250626 045300",22500,22501.25,22499.5,22500.5,96,1.75]
[null,null,null,null,null,null,null,null,null,null,null,null,null,null,null,null,null,null,null,null,null,null,null,null,null,null,null,null,null,null,null,null,null,null,null,"20250626 045400",22501.25,22502,22500,22500,80,2]
[null,null,null,null,null,null,null,null,null,null,null,null,null,null,null,null,null,null,null,null,null,null,null,null,null,null,null,null,null,null,null,null,null,null,null,"20250626 045500",22500.5,22501.75,22500,22501.5,33,1.75]
[null,null,null,null,null,null,null,null,null,null,null,null,null,null,null,null,null,null,null,null,null,null,null,null,null,null,null,null,null,null,null,null,null,null,null,"20250626 045600",22502,22503,22501.75,22502.75,81,1.5]
[null,null,null,null,null,null,null,null,null,null,null,null,null,null,null,null,null,null,null,null,null,null,null,null,null,null,null,null,null,null,null,null,null,null,null,"20250626 045700",22502.5,22503.5,22501.25,22502.25,95,2.25]
[null,null,null,null,null,null,null,null,null,null,null,null,null,null,null,null,null,null,null,null,null,null,null,null,null,null,null,null,null,null,null,null,null,null,null,"20250626 045800",22502.5,22507.5,22502,22503.25,350,5.5]
[null,null,null,null,null,null,null,null,null,null,null,null,null,null,null,null,null,null,null,null,null,null,null,null,null,null,null,null,null,null,null,null,null,null,null,"20250626 045900",22503.25,22504.75,22501.75,22504,153,3]
[null,null,null,null,null,null,null,null,null,null,null,null,null,null,null,null,null,null,null,null,null,null,null,null,null,null,null,null,null,null,null,null,null,null,null,"20250626 050000",22504.5,22506,22503.75,22505,108,2.25]
[null,null,null,null,null,null,null,null,null,null,null,null,null,null,null,null,null,null,null,null,null,null,null,null,null,null,null,null,null,null,null,null,null,null,null,"20250626 050100",22504.75,22505,22502,22502,196,3]
[null,null,null,null,null,null,null,null,null,null,null,null,null,null,null,null,null,null,null,null,null,null,null,null,null,null,null,null,null,null,null,null,null,null,null,"20250626 050200",22502,22503,22498,22498.5,222,5]
[null,null,null,null,null,null,null,null,null,null,null,null,null,null,null,null,null,null,null,null,null,null,null,null,null,null,null,null,null,null,null,null,null,null,null,"20250626 050300",22498.75,22501.25,22498.75,22500.75,99,2.75]
[null,null,null,null,null,null,null,null,null,null,null,null,null,null,null,null,null,null,null,null,null,null,null,null,null,null,null,null,null,null,null,null,null,null,null,"20250626 050400",22500.75,22502.25,22500,22502,73,2.25]
[null,null,null,null,null,null,null,null,null,null,null,null,null,null,null,null,null,null,null,null,null,null,null,null,null,null,null,null,null,null,null,null,null,null,null,"20250626 050500",22502,22502.5,22499,22501,92,3.5]
[null,null,null,null,null,null,null,null,null,null,null,null,null,null,null,null,null,null,null,null,null,null,null,null,null,null,null,null,null,null,null,null,null,null,null,"20250626 050600",22501,22501.75,22498.25,22500,104,{"$f":"MAX(AL67 - AM67, ABS(AL67 - AN66), ABS(AM67 - AN66))","v":3.5}]
[null,null,null,null,null,null,null,null,null,null,null,null,null,null,null,null,null,null,null,null,null,null,null,null,null,null,null,null,null,null,null,null,null,null,null,"20250626 050700",22500.25,22500.25,22498.5,22499.75,67,1.75]
[null,null,null,null,null,null,null,null,null,null,null,null,null,null,null,null,null,null,null,null,null,null,null,null,null,null,null,null,null,null,null,null,null,null,null,"20250626 050800",22499.5,22499.5,22494.75,22497.5,282,5]
[null,null,null,null,null,null,null,null,null,null,null,null,null,null,null,null,null,null,null,null,null,null,null,null,null,null,null,null,null,null,null,null,null,null,null,"20250626 050900",22497.75,22499.5,22497.25,22499.5,63,2.25]
[null,null,null,null,null,null,null,null,null,null,null,null,null,null,null,null,null,null,null,null,null,null,null,null,null,null,null,null,null,null,null,null,null,null,null,"20250626 051000",22499.5,22500,22498,22498.25,67,2]
[null,null,null,null,null,null,null,null,null,null,null,null,null,null,null,null,null,null,null,null,null,null,null,null,null,null,null,null,null,null,null,null,null,null,null,"20250626 051100",22497.75,22500.25,22497,22500,75,3.25]
[null,null,null,null,null,null,null,null,null,null,null,null,null,null,null,null,null,null,null,null,null,null,null,null,null,null,null,null,null,null,null,null,null,null,null,"20250626 051200",22500,22501,22499.75,22500.5,69,1.25]
[null,null,null,null,null,null,null,null,null,null,null,null,null,null,null,null,null,null,null,null,null,null,null,null,null,null,null,null,null,null,null,null,null,null,null,"20250626 051300",22500.75,22502.25,22500.5,22501.5,99,1.75]
[null,null,null,null,null,null,null,null,null,null,null,null,null,null,null,null,null,null,null,null,null,null,null,null,null,null,null,null,null,null,null,null,null,null,null,"20250626 051400",22502,22502.75,22500.25,22500.5,67,2.5]
[null,null,null,null,null,null,null,null,null,null,null,null,null,null,null,null,null,null,null,null,null,null,null,null,null,null,null,null,null,null,null,null,null,null,null,"20250626 051500",22501,22501.25,22498,22498.5,105,3.25]
[null,null,null,null,null,null,null,null,null,null,null,null,null,null,null,null,null,null,null,null,null,null,null,null,null,null,null,null,null,null,null,null,null,null,null,"20250626 051600",22498,22498.75,22497.75,22498.5,90,1]
[null,null,null,null,null,null,null,null,null,null,null,null,null,null,null,null,null,null,null,null,null,null,null,null,null,null,null,null,null,null,null,null,null,null,null,"20250626 051700",22498.75,22499.75,22498,22498.5,68,1.75]
[null,null,null,null,null,null,null,null,null,null,null,null,null,null,null,null,null,null,null,null,null,null,null,null,null,null,null,null,null,null,null,null,null,null,null,"20250626 051800",22498,22498,22496.75,22497.5,65,1.75]
[null,null,null,null,null,null,null,null,null,null,null,null,null,null,null,null,null,null,null,null,null,null,null,null,null,null,null,null,null,null,null,null,null,null,null,"20250626 051900",22497.5,22498.5,22496.75,22497,49,1.75]
[null,null,null,null,null,null,null,null,null,null,null,null,null,null,null,null,null,null,null,null,null,null,null,null,null,null,null,null,null,null,null,null,null,null,null,"20250626 052000",22497,22497.5,22496.25,22496.75,79,1.25]
[null,null,null,null,null,null,null,null,null,null,null,null,null,null,null,null,null,null,null,null,null,null,null,null,null,null,null,null,null,null,null,null,null,null,null,"20250626 052100",22497,22499,22494.75,22497,132,4.25]
[null,null,null,null,null,null,null,null,null,null,null,null,null,null,null,null,null,null,null,null,null,null,null,null,null,null,null,null,null,null,null,null,null,null,null,"20250626 052200",22496.5,22496.75,22495.5,22496.25,71,1.5]
[null,null,null,null,null,null,null,null,null,null,null,null,null,null,null,null,null,null,null,null,null,null,null,null,null,null,null,null,null,null,null,null,null,null,null,"20250626 052300",22496,22496,22494.75,22495.25,58,1.5]
[null,null,null,null,null,null,null,null,null,null,null,null,null,null,null,null,null,null,null,null,null,null,null,null,null,null,null,null,null,null,null,null,null,null,null,"20250626 052400",22496,22496.75,22493.25,22495,143,3.5]
[null,null,null,null,null,null,null,null,null,null,null,null,null,null,null,null,null,null,null,null,null,null,null,null,null,null,null,null,null,null,null,null,null,null,null,"20250626 052500",22494.75,22495.5,22493.75,22495.5,86,1.75]
[null,null,null,null,null,null,null,null,null,null,null,null,null,null,null,null,null,null,null,null,null,null,null,null,null,null,null,null,null,null,null,null,null,null,null,"20250626 052600",22495.25,22496,22493.75,22494.75,49,2.25]
[null,null,null,null,null,null,null,null,null,null,null,null,null,null,null,null,null,null,null,null,null,null,null,null,null,null,null,null,null,null,null,null,null,null,null,"20250626 052700",22494.25,22495,22494,22494.25,39,1]
[null,null,null,null,null,null,null,null,null,null,null,null,null,null,null,null,null,null,null,null,null,null,null,null,null,null,null,null,null,null,null,null,null,null,null,"20250626 052800",22495,22497.25,22494.5,22497.25,70,3]
[null,null,null,null,null,null,null,null,null,null,null,null,null,null,null,null,null,null,null,null,null,null,null,null,null,null,null,null,null,null,null,null,null,null,null,"20250626 052900",22497.5,22499.5,22496.25,22496.75,150,3.25]
[null,null,null,null,null,null,null,null,null,null,null,null,null,null,null,null,null,null,null,null,null,null,null,null,null,null,null,null,null,null,null,null,null,null,null,"20250626 053000",22496.5,22496.75,22495.25,22496.25,51,1.5]
[null,null,null,null,null,null,null,null,null,null,null,null,null,null,null,null,null,null,null,null,null,null,null,null,null,null,null,null,null,null,null,null,null,null,null,"20250626 053100",22496.5,22499.5,22495.5,22498.75,107,4]
[null,null,null,null,null,null,null,null,null,null,null,null,null,null,null,null,null,null,null,null,null,null,null,null,null,null,null,null,null,null,null,null,null,null,null,"20250626 053200",22498.5,22500,22498,22500,87,2]
[null,null,null,null,null,null,null,null,null,null,null,null,null,null,null,null,null,null,null,null,null,null,null,null,null,null,null,null,null,null,null,null,null,null,null,"20250626 053300",22499.5,22500,22498.25,22498.75,59,1.75]
[null,null,null,null,null,null,null,null,null,null,null,null,null,null,null,null,null,null,null,null,null,null,null,null,null,null,null,null,null,null,null,null,null,null,null,"20250626 053400",22499.25,22500,22497.5,22498.75,140,2.5]
[null,null,null,null,null,null,null,null,null,null,null,null,null,null,null,null,null,null,null,null,null,null,null,null,null,null,null,null,null,null,null,null,null,null,null,"20250626 053500",22499.5,22501.75,22499,22501.5,119,3]
[null,null,null,null,null,null,null,null,null,null,null,null,null,null,null,null,null,null,null,null,null,null,null,null,null,null,null,null,null,null,null,null,null,null,null,"20250626 053600",22502,22504,22501.75,22503,156,2.5]
[null,null,null,null,null,null,null,null,null,null,null,null,null,null,null,null,null,null,null,null,null,null,null,null,null,null,null,null,null,null,null,null,null,null,null,"20250626 053700",22503,22503.5,22501,22502.25,151,2.5]
[null,null,null,null,null,null,null,null,null,null,null,null,null,null,null,null,null,null,null,null,null,null,null,null,null,null,null,null,null,null,null,null,null,null,null,"20250626 053800",22502.75,22502.75,22496.5,22498,254,6.25]
[null,null,null,null,null,null,null,null,null,null,null,null,null,null,null,null,null,null,null,null,null,null,null,null,null,null,null,null,null,null,null,null,null,null,null,"20250626 053900",22498.25,22501.75,22498.25,22501,153,3.75]
[null,null,null,null,null,null,null,null,null,null,null,null,null,null,null,null,null,null,null,null,null,null,null,null,null,null,null,null,null,null,null,null,null,null,null,"20250626 054000",22500.5,22501,22496.75,22498,102,4.25]
[null,null,null,null,null,null,null,null,null,null,null,null,null,null,null,null,null,null,null,null,null,null,null,null,null,null,null,null,null,null,null,null,null,null,null,"20250626 054100",22496.75,22499.5,22495,22498.75,105,4.5]
[null,null,null,null,null,null,null,null,null,null,null,null,null,null,null,null,null,null,null,null,null,null,null,null,null,null,null,null,null,null,null,null,null,null,null,"20250626 054200",22499,22499.25,22496.75,22497.25,115,2.5]
[null,null,null,null,null,null,null,null,null,null,null,null,null,null,null,null,null,null,null,null,null,null,null,null,null,null,null,null,null,null,null,null,null,null,null,"20250626 054300",22497.5,22498.75,22496.5,22498,92,2.25]
[null,null,null,null,null,null,null,null,null,null,null,null,null,null,null,null,null,null,null,null,null,null,null,null,null,null,null,null,null,null,null,null,null,null,null,"20250626 054400",22498.5,22498.5,22496.5,22496.5,38,2]
[null,null,null,null,null,null,null,null,null,null,null,null,null,null,null,null,null,null,null,null,null,null,null,null,null,null,null,null,null,null,null,null,null,null,null,"20250626 054500",22496.5,22499.75,22496,22498.5,116,3.75]
[null,null,null,null,null,null,null,null,null,null,null,null,null,null,null,null,null,null,null,null,null,null,null,null,null,null,null,null,null,null,null,null,null,null,null,"20250626 054600",22499,22501,22498.75,22500,103,2.5]
[null,null,null,null,null,null,null,null,null,null,null,null,null,null,null,null,null,null,null,null,null,null,null,null,null,null,null,null,null,null,null,null,null,null,null,"20250626 054700",22500.25,22500.75,22499.5,22500,40,1.25]
[null,null,null,null,null,null,null,null,null,null,null,null,null,null,null,null,null,null,null,null,null,null,null,null,null,null,null,null,null,null,null,null,null,null,null,"20250626 054800",22500,22502.25,22500,22502.25,80,2.25]
[null,null,null,null,null,null,null,null,null,null,null,null,null,null,null,null,null,null,null,null,null,null,null,null,null,null,null,null,null,null,null,null,null,null,null,"20250626 054900",22502.25,22503.75,22501.25,22502.75,169,2.5]
[null,null,null,null,null,null,null,null,null,null,null,null,null,null,null,null,null,null,null,null,null,null,null,null,null,null,null,null,null,null,null,null,null,null,null,"20250626 055000",22502.75,22502.75,22500,22500.5,105,2.75]
[null,null,null,null,null,null,null,null,null,null,null,null,null,null,null,null,null,null,null,null,null,null,null,null,null,null,null,null,null,null,null,null,null,null,null,"20250626 055100",22501.25,22503.25,22500.75,22503.25,55,2.75]
[null,null,null,null,null,null,null,null,null,null,null,null,null,null,null,null,null,null,null,null,null,null,null,null,null,null,null,null,null,null,null,null,null,null,null,"20250626 055200",22502.75,22505.75,22501.75,22504.25,276,4]
[null,null,null,null,null,null,null,null,null,null,null,null,null,null,null,null,null,null,null,null,null,null,null,null,null,null,null,null,null,null,null,null,null,null,null,"20250626 055300",22504,22506.5,22503.5,22505.75,167,3]
[null,null,null,null,null,null,null,null,null,null,null,null,null,null,null,null,null,null,null,null,null,null,null,null,null,null,null,null,null,null,null,null,null,null,null,"20250626 055400",22505.5,22506.5,22502.75,22503,96,3.75]
[null,null,null,null,null,null,null,null,null,null,null,null,null,null,null,null,null,null,null,null,null,null,null,null,null,null,null,null,null,null,null,null,null,null,null,"20250626 055500",22503.75,22506,22501.75,22504,178,4.25]
[null,null,null,null,null,null,null,null,null,null,null,null,null,null,null,null,null,null,null,null,null,null,null,null,null,null,null,null,null,null,null,null,null,null,null,"20250626 055600",22503.75,22508.75,22503.5,22507.25,318,5.25]
[null,null,null,null,null,null,null,null,null,null,null,null,null,null,null,null,null,null,null,null,null,null,null,null,null,null,null,null,null,null,null,null,null,null,null,"20250626 055700",22507.25,22508.75,22506.25,22508.5,115,2.5]
[null,null,null,null,null,null,null,null,null,null,null,null,null,null,null,null,null,null,null,null,null,null,null,null,null,null,null,null,null,null,null,null,null,null,null,"20250626 055800",22508.75,22509.25,22507.25,22507.5,167,2]
[null,null,null,null,null,null,null,null,null,null,null,null,null,null,null,null,null,null,null,null,null,null,null,null,null,null,null,null,null,null,null,null,null,null,null,"20250626 055900",22507.5,22512.25,22506.5,22509,453,5.75]
[null,null,null,null,null,null,null,null,null,null,null,null,null,null,null,null,null,null,null,null,null,null,null,null,null,null,null,null,null,null,null,null,null,null,null,"20250626 060000",22508,22511.25,22507,22511.25,128,4.25]
[null,null,null,null,null,null,null,null,null,null,null,null,null,null,null,null,null,null,null,null,null,null,null,null,null,null,null,null,null,null,null,null,null,null,null,"20250626 060100",22511,22511.75,22508.5,22511.5,288,3.25]
[null,null,null,null,null,null,null,null,null,null,null,null,null,null,null,null,null,null,null,null,null,null,null,null,null,null,null,null,null,null,null,null,null,null,null,"20250626 060200",22511,22514,22508.25,22513.75,352,5.75]
[null,null,null,null,null,null,null,null,null,null,null,null,null,null,null,null,null,null,null,null,null,null,null,null,null,null,null,null,null,null,null,null,null,null,null,"20250626 060300",22513.25,22515.75,22511.25,22511.75,418,4.5]
[null,null,null,null,null,null,null,null,null,null,null,null,null,null,null,null,null,null,null,null,null,null,null,null,null,null,null,null,null,null,null,null,null,null,null,"20250626 060400",22512,22515,22510.75,22512.75,239,4.25]
[null,null,null,null,null,null,null,null,null,null,null,null,null,null,null,null,null,null,null,null,null,null,null,null,null,null,null,null,null,null,null,null,null,null,null,"20250626 060500",22512.75,22515,22512.25,22514.75,202,2.75]
[null,null,null,null,null,null,null,null,null,null,null,null,null,null,null,null,null,null,null,null,null,null,null,null,null,null,null,null,null,null,null,null,null,null,null,"20250626 060600",22514.25,22518.25,22514.25,22516.5,580,4]
[null,null,null,null,null,null,null,null,null,null,null,null,null,null,null,null,null,null,null,null,null,null,null,null,null,null,null,null,null,null,null,null,null,null,null,"20250626 060700",22516.5,22518.75,22516,22518.25,221,2.75]
[null,null,null,null,null,null,null,null,null,null,null,null,null,null,null,null,null,null,null,null,null,null,null,null,null,null,null,null,null,null,null,null,null,null,null,"20250626 060800",22518,22519.75,22517,22519.5,360,2.75]
[null,null,null,null,null,null,null,null,null,null,null,null,null,null,null,null,null,null,null,null,null,null,null,null,null,null,null,null,null,null,null,null,null,null,null,"20250626 060900",22519.5,22522,22517,22522,474,5]
[null,null,null,null,null,null,null,null,null,null,null,null,null,null,null,null,null,null,null,null,null,null,null,null,null,null,null,null,null,null,null,null,null,null,null,"20250626 061000",22522.25,22524,22519.5,22519.5,484,{"$f":"MAX(AL131 - AM131, ABS(AL131 - AN130), ABS(AM131 - AN130))","v":4.5}]
[null,null,null,null,null,null,null,null,null,null,null,null,null,null,null,null,null,null,null,null,null,null,null,null,null,null,null,null,null,null,null,null,null,null,null,"20250626 061100",22520,22520.25,22515.75,22516.25,282,4.5]
[null,null,null,null,null,null,null,null,null,null,null,null,null,null,null,null,null,null,null,null,null,null,null,null,null,null,null,null,null,null,null,null,null,null,null,"20250626 061200",22516,22517.5,22515,22516.75,168,2.5]
[null,null,null,null,null,null,null,null,null,null,null,null,null,null,null,null,null,null,null,null,null,null,null,null,null,null,null,null,null,null,null,null,null,null,null,"20250626 061300",22516.75,22519.75,22515,22518.5,214,4.75]
[null,null,null,null,null,null,null,null,null,null,null,null,null,null,null,null,null,null,null,null,null,null,null,null,null,null,null,null,null,null,null,null,null,null,null,"20250626 061400",22518,22519,22514.75,22516.25,187,4.25]
[null,null,null,null,null,null,null,null,null,null,null,null,null,null,null,null,null,null,null,null,null,null,null,null,null,null,null,null,null,null,null,null,null,null,null,"20250626 061500",22515.75,22516.25,22514,22515.25,289,2.25]
[null,null,null,null,null,null,null,null,null,null,null,null,null,null,null,null,null,null,null,null,null,null,null,null,null,null,null,null,null,null,null,null,null,null,null,"20250626 061600",22514,22516,22513.25,22514.5,170,2.75]
[null,null,null,null,null,null,null,null,null,null,null,null,null,null,null,null,null,null,null,null,null,null,null,null,null,null,null,null,null,null,null,null,null,null,null,"20250626 061700",22514.25,22517.5,22511.75,22512.75,286,5.75]
[null,null,null,null,null,null,null,null,null,null,null,null,null,null,null,null,null,null,null,null,null,null,null,null,null,null,null,null,null,null,null,null,null,null,null,"20250626 061800",22513,22516.75,22511.5,22515.25,205,5.25]
[null,null,null,null,null,null,null,null,null,null,null,null,null,null,null,null,null,null,null,null,null,null,null,null,null,null,null,null,null,null,null,null,null,null,null,"20250626 061900",22515.5,22515.5,22513.5,22514.5,62,2]
[null,null,null,null,null,null,null,null,null,null,null,null,null,null,null,null,null,null,null,null,null,null,null,null,null,null,null,null,null,null,null,null,null,null,null,"20250626 062000",22514,22515.75,22513.5,22515.75,66,2.25]
[null,null,null,null,null,null,null,null,null,null,null,null,null,null,null,null,null,null,null,null,null,null,null,null,null,null,null,null,null,null,null,null,null,null,null,"20250626 062100",22515,22516.75,22514.25,22516.75,87,2.5]
[null,null,null,null,null,null,null,null,null,null,null,null,null,null,null,null,null,null,null,null,null,null,null,null,null,null,null,null,null,null,null,null,null,null,null,"20250626 062200",22517,22517,22513.25,22516,132,3.75]
[null,null,null,null,null,null,null,null,null,null,null,null,null,null,null,null,null,null,null,null,null,null,null,null,null,null,null,null,null,null,null,null,null,null,null,"20250626 062300",22515.75,22517.25,22514.5,22514.75,87,2.75]
[null,null,null,null,null,null,null,null,null,null,null,null,null,null,null,null,null,null,null,null,null,null,null,null,null,null,null,null,null,null,null,null,null,null,null,"20250626 062400",22515.25,22515.5,22513.75,22514,87,1.75]
[null,null,null,null,null,null,null,null,null,null,null,null,null,null,null,null,null,null,null,null,null,null,null,null,null,null,null,null,null,null,null,null,null,null,null,"20250626 062500",22513.5,22516,22512.75,22515.5,113,3.25]
[null,null,null,null,null,null,null,null,null,null,null,null,null,null,null,null,null,null,null,null,null,null,null,null,null,null,null,null,null,null,null,null,null,null,null,"20250626 062600",22515.25,22520.5,22514.75,22519.25,207,5.75]
[null,null,null,null,null,null,null,null,null,null,null,null,null,null,null,null,null,null,null,null,null,null,null,null,null,null,null,null,null,null,null,null,null,null,null,"20250626 062700",22519.25,22521.25,22516.5,22517.5,188,4.75]
[null,null,null,null,null,null,null,null,null,null,null,null,null,null,null,null,null,null,null,null,null,null,null,null,null,null,null,null,null,null,null,null,null,null,null,"20250626 062800",22517.25,22524.75,22517,22520.5,266,7.75]
[null,null,null,null,null,null,null,null,null,null,null,null,null,null,null,null,null,null,null,null,null,null,null,null,null,null,null,null,null,null,null,null,null,null,null,"20250626 062900",22521,22523.25,22519.5,22520,203,3.75]
[null,null,null,null,null,null,null,null,null,null,null,null,null,null,null,null,null,null,null,null,null,null,null,null,null,null,null,null,null,null,null,null,null,null,null,"20250626 063000",22519.75,22522.75,22519.75,22520,126,3]
[null,null,null,null,null,null,null,null,null,null,null,null,null,null,null,null,null,null,null,null,null,null,null,null,null,null,null,null,null,null,null,null,null,null,null,"20250626 063100",22519.5,22520.25,22516,22517.75,241,4.25]
[null,null,null,null,null,null,null,null,null,null,null,null,null,null,null,null,null,null,null,null,null,null,null,null,null,null,null,null,null,null,null,null,null,null,null,"20250626 063200",22517.5,22519.75,22514,22517.25,233,5.75]
[null,null,null,null,null,null,null,null,null,null,null,null,null,null,null,null,null,null,null,null,null,null,null,null,null,null,null,null,null,null,null,null,null,null,null,"20250626 063300",22517,22519.25,22515.5,22518.25,165,3.75]
[null,null,null,null,null,null,null,null,null,null,null,null,null,null,null,null,null,null,null,null,null,null,null,null,null,null,null,null,null,null,null,null,null,null,null,"20250626 063400",22517.25,22517.75,22514.5,22515.5,81,3.75]
[null,null,null,null,null,null,null,null,null,null,null,null,null,null,null,null,null,null,null,null,null,null,null,null,null,null,null,null,null,null,null,null,null,null,null,"20250626 063500",22515.5,22517.5,22514,22516.75,159,3.5]
[null,null,null,null,null,null,null,null,null,null,null,null,null,null,null,null,null,null,null,null,null,null,null,null,null,null,null,null,null,null,null,null,null,null,null,"20250626 063600",22517.25,22517.25,22515,22515.25,60,2.25]
[null,null,null,null,null,null,null,null,null,null,null,null,null,null,null,null,null,null,null,null,null,null,null,null,null,null,null,null,null,null,null,null,null,null,null,"20250626 063700",22515,22518.5,22513.75,22517.5,154,4.75]
[null,null,null,null,null,null,null,null,null,null,null,null,null,null,null,null,null,null,null,null,null,null,null,null,null,null,null,null,null,null,null,null,null,null,null,"20250626 063800",22518,22518.75,22516.5,22517.75,86,2.25]
[null,null,null,null,null,null,null,null,null,null,null,null,null,null,null,null,null,null,null,null,null,null,null,null,null,null,null,null,null,null,null,null,null,null,null,"20250626 063900",22517.75,22520.25,22517,22517,133,3.25]
[null,null,null,null,null,null,null,null,null,null,null,null,null,null,null,null,null,null,null,null,null,null,null,null,null,null,null,null,null,null,null,null,null,null,null,"20250626 064000",22516.75,22518.5,22515.75,22516,82,2.75]
[null,null,null,null,null,null,null,null,null,null,null,null,null,null,null,null,null,null,null,null,null,null,null,null,null,null,null,null,null,null,null,null,null,null,null,"20250626 064100",22515.75,22518.75,22515.75,22518,79,3]
[null,null,null,null,null,null,null,null,null,null,null,null,null,null,null,null,null,null,null,null,null,null,null,null,null,null,null,null,null,null,null,null,null,null,null,"20250626 064200",22518,22518.75,22517,22517.25,27,1.75]
[null,null,null,null,null,null,null,null,null,null,null,null,null,null,null,null,null,null,null,null,null,null,null,null,null,null,null,null,null,null,null,null,null,null,null,"20250626 064300",22517.5,22521.25,22517.5,22521,146,4]
[null,null,null,null,null,null,null,null,null,null,null,null,null,null,null,null,null,null,null,null,null,null,null,null,null,null,null,null,null,null,null,null,null,null,null,"20250626 064400",22521.25,22523.25,22520,22522.25,201,3.25]
[null,null,null,null,null,null,null,null,null,null,null,null,null,null,null,null,null,null,null,null,null,null,null,null,null,null,null,null,null,null,null,null,null,null,null,"20250626 064500",22522.25,22523.5,22521.25,22522.75,163,2.25]
[null,null,null,null,null,null,null,null,null,null,null,null,null,null,null,null,null,null,null,null,null,null,null,null,null,null,null,null,null,null,null,null,null,null,null,"20250626 064600",22522.25,22533,22521.75,22528.75,1469,11.25]
[null,null,null,null,null,null,null,null,null,null,null,null,null,null,null,null,null,null,null,null,null,null,null,null,null,null,null,null,null,null,null,null,null,null,null,"20250626 064700",22528.5,22532.25,22528,22530.75,286,4.25]
[null,null,null,null,null,null,null,null,null,null,null,null,null,null,null,null,null,null,null,null,null,null,null,null,null,null,null,null,null,null,null,null,null,null,null,"20250626 064800",22530.25,22533.5,22530,22532.75,292,3.5]
[null,null,null,null,null,null,null,null,null,null,null,null,null,null,null,null,null,null,null,null,null,null,null,null,null,null,null,null,null,null,null,null,null,null,null,"20250626 064900",22532.5,22535.5,22531,22534.25,447,4.5]
[null,null,null,null,null,null,null,null,null,null,null,null,null,null,null,null,null,null,null,null,null,null,null,null,null,null,null,null,null,null,null,null,null,null,null,"20250626 065000",22534.5,22535.75,22532.5,22534.75,312,3.25]
[null,null,null,null,null,null,null,null,null,null,null,null,null,null,null,null,null,null,null,null,null,null,null,null,null,null,null,null,null,null,null,null,null,null,null,"20250626 065100",22534.5,22535.75,22533,22534.75,201,2.75]
[null,null,null,null,null,null,null,null,null,null,null,null,null,null,null,null,null,null,null,null,null,null,null,null,null,null,null,null,null,null,null,null,null,null,null,"20250626 065200",22534.75,22535.5,22533.75,22533.75,129,1.75]
[null,null,null,null,null,null,null,null,null,null,null,null,null,null,null,null,null,null,null,null,null,null,null,null,null,null,null,null,null,null,null,null,null,null,null,"20250626 065300",22534,22536,22532,22533.75,328,4]
[null,null,null,null,null,null,null,null,null,null,null,null,null,null,null,null,null,null,null,null,null,null,null,null,null,null,null,null,null,null,null,null,null,null,null,"20250626 065400",22534.25,22543.5,22533.75,22538.75,1016,9.75]
[null,null,null,null,null,null,null,null,null,null,null,null,null,null,null,null,null,null,null,null,null,null,null,null,null,null,null,null,null,null,null,null,null,null,null,"20250626 065500",22538.5,22541,22534.25,22535,350,6.75]
[null,null,null,null,null,null,null,null,null,null,null,null,null,null,null,null,null,null,null,null,null,null,null,null,null,null,null,null,null,null,null,null,null,null,null,"20250626 065600",22535,22537.5,22532.5,22536.25,287,5]
[null,null,null,null,null,null,null,null,null,null,null,null,null,null,null,null,null,null,null,null,null,null,null,null,null,null,null,null,null,null,null,null,null,null,null,"20250626 065700",22537,22537.5,22532.5,22533.25,161,5]
[null,null,null,null,null,null,null,null,null,null,null,null,null,null,null,null,null,null,null,null,null,null,null,null,null,null,null,null,null,null,null,null,null,null,null,"20250626 065800",22533.25,22537.75,22531.5,22535.75,302,6.25]
[null,null,null,null,null,null,null,null,null,null,null,null,null,null,null,null,null,null,null,null,null,null,null,null,null,null,null,null,null,null,null,null,null,null,null,"20250626 065900",22536,22537.75,22535.25,22537,139,2.5]
[null,null,null,null,null,null,null,null,null,null,null,null,null,null,null,null,null,null,null,null,null,null,null,null,null,null,null,null,null,null,null,null,null,null,null,"20250626 070000",22537.25,22538.25,22532.5,22532.5,243,5.75]
[null,null,null,null,null,null,null,null,null,null,null,null,null,null,null,null,null,null,null,null,null,null,null,null,null,null,null,null,null,null,null,null,null,null,null,"20250626 070100",22533,22538,22531,22533.75,537,7]
[null,null,null,null,null,null,null,null,null,null,null,null,null,null,null,null,null,null,null,null,null,null,null,null,null,null,null,null,null,null,null,null,null,null,null,"20250626 070200",22533.75,22537.25,22530.5,22535.5,290,6.75]
[null,null,null,null,null,null,null,null,null,null,null,null,null,null,null,null,null,null,null,null,null,null,null,null,null,null,null,null,null,null,null,null,null,null,null,"20250626 070300",22536.25,22537,22534.5,22535.25,142,2.5]
[null,null,null,null,null,null,null,null,null,null,null,null,null,null,null,null,null,null,null,null,null,null,null,null,null,null,null,null,null,null,null,null,null,null,null,"20250626 070400",22535.25,22535.75,22528.5,22530.25,308,7.25]
[null,null,null,null,null,null,null,null,null,null,null,null,null,null,null,null,null,null,null,null,null,null,null,null,null,null,null,null,null,null,null,null,null,null,null,"20250626 070500",22530.25,22532.5,22528.25,22530.5,267,4.25]
[null,null,null,null,null,null,null,null,null,null,null,null,null,null,null,null,null,null,null,null,null,null,null,null,null,null,null,null,null,null,null,null,null,null,null,"20250626 070600",22530.75,22531.5,22527.25,22531,204,4.25]
[null,null,null,null,null,null,null,null,null,null,null,null,null,null,null,null,null,null,null,null,null,null,null,null,null,null,null,null,null,null,null,null,null,null,null,"20250626 070700",22531,22532,22528,22531,207,4]
[null,null,null,null,null,null,null,null,null,null,null,null,null,null,null,null,null,null,null,null,null,null,null,null,null,null,null,null,null,null,null,null,null,null,null,"20250626 070800",22531.75,22535,22530.5,22532.25,260,4.5]
[null,null,null,null,null,null,null,null,null,null,null,null,null,null,null,null,null,null,null,null,null,null,null,null,null,null,null,null,null,null,null,null,null,null,null,"20250626 070900",22532.25,22532.75,22529.5,22531.5,107,3.25]
[null,null,null,null,null,null,null,null,null,null,null,null,null,null,null,null,null,null,null,null,null,null,null,null,null,null,null,null,null,null,null,null,null,null,null,"20250626 071000",22532,22532,22527,22529.25,202,5]
[null,null,null,null,null,null,null,null,null,null,null,null,null,null,null,null,null,null,null,null,null,null,null,null,null,null,null,null,null,null,null,null,null,null,null,"20250626 071100",22529.5,22533.25,22529.25,22533,122,4]
[null,null,null,null,null,null,null,null,null,null,null,null,null,null,null,null,null,null,null,null,null,null,null,null,null,null,null,null,null,null,null,null,null,null,null,"20250626 071200",22533,22533.5,22530.5,22531.75,132,3]
[null,null,null,null,null,null,null,null,null,null,null,null,null,null,null,null,null,null,null,null,null,null,null,null,null,null,null,null,null,null,null,null,null,null,null,"20250626 071300",22531.75,22533.5,22530.75,22533.5,113,2.75]
[null,null,null,null,null,null,null,null,null,null,null,null,null,null,null,null,null,null,null,null,null,null,null,null,null,null,null,null,null,null,null,null,null,null,null,"20250626 071400",22533.75,22536.5,22532.75,22534.75,297,{"$f":"MAX(AL195 - AM195, ABS(AL195 - AN194), ABS(AM195 - AN194))","v":3.75}]
[null,null,null,null,null,null,null,null,null,null,null,null,null,null,null,null,null,null,null,null,null,null,null,null,null,null,null,null,null,null,null,null,null,null,null,"20250626 071500",22534.5,22535.25,22532.25,22532.5,95,3]
[null,null,null,null,null,null,null,null,null,null,null,null,null,null,null,null,null,null,null,null,null,null,null,null,null,null,null,null,null,null,null,null,null,null,null,"20250626 071600",22532.75,22535,22531,22534,176,4]
[null,null,null,null,null,null,null,null,null,null,null,null,null,null,null,null,null,null,null,null,null,null,null,null,null,null,null,null,null,null,null,null,null,null,null,"20250626 071700",22534,22539,22533.25,22538.25,259,5.75]
[null,null,null,null,null,null,null,null,null,null,null,null,null,null,null,null,null,null,null,null,null,null,null,null,null,null,null,null,null,null,null,null,null,null,null,"20250626 071800",22538,22557.25,22538,22548.5,2612,19.25]
[null,null,null,null,null,null,null,null,null,null,null,null,null,null,null,null,null,null,null,null,null,null,null,null,null,null,null,null,null,null,null,null,null,null,null,"20250626 071900",22549,22552.5,22543,22543.25,730,9.5]
[null,null,null,null,null,null,null,null,null,null,null,null,null,null,null,null,null,null,null,null,null,null,null,null,null,null,null,null,null,null,null,null,null,null,null,"20250626 072000",22543,22544.75,22538,22539.25,657,6.75]
[null,null,null,null,null,null,null,null,null,null,null,null,null,null,null,null,null,null,null,null,null,null,null,null,null,null,null,null,null,null,null,null,null,null,null,"20250626 072100",22539,22539.5,22531.75,22532.25,645,7.75]
[null,null,null,null,null,null,null,null,null,null,null,null,null,null,null,null,null,null,null,null,null,null,null,null,null,null,null,null,null,null,null,null,null,null,null,"20250626 072200",22532.5,22533,22527.75,22528.25,528,5.25]
[null,null,null,null,null,null,null,null,null,null,null,null,null,null,null,null,null,null,null,null,null,null,null,null,null,null,null,null,null,null,null,null,null,null,null,"20250626 072300",22528.25,22531.75,22527.25,22530,314,4.5]
[null,null,null,null,null,null,null,null,null,null,null,null,null,null,null,null,null,null,null,null,null,null,null,null,null,null,null,null,null,null,null,null,null,null,null,"20250626 072400",22530,22535.75,22530,22535,299,5.75]
[null,null,null,null,null,null,null,null,null,null,null,null,null,null,null,null,null,null,null,null,null,null,null,null,null,null,null,null,null,null,null,null,null,null,null,"20250626 072500",22535,22535.5,22532,22534.5,177,3.5]
[null,null,null,null,null,null,null,null,null,null,null,null,null,null,null,null,null,null,null,null,null,null,null,null,null,null,null,null,null,null,null,null,null,null,null,"20250626 072600",22534.5,22535.25,22531,22531.75,145,4.25]
[null,null,null,null,null,null,null,null,null,null,null,null,null,null,null,null,null,null,null,null,null,null,null,null,null,null,null,null,null,null,null,null,null,null,null,"20250626 072700",22531.5,22531.5,22527.75,22528,212,4]
[null,null,null,null,null,null,null,null,null,null,null,null,null,null,null,null,null,null,null,null,null,null,null,null,null,null,null,null,null,null,null,null,null,null,null,"20250626 072800",22528.25,22530.25,22525,22528.25,380,5.25]
[null,null,null,null,null,null,null,null,null,null,null,null,null,null,null,null,null,null,null,null,null,null,null,null,null,null,null,null,null,null,null,null,null,null,null,"20250626 072900",22528.75,22529.75,22525.25,22526.5,197,4.5]
[null,null,null,null,null,null,null,null,null,null,null,null,null,null,null,null,null,null,null,null,null,null,null,null,null,null,null,null,null,null,null,null,null,null,null,"20250626 073000",22526.75,22527.5,22523.5,22526.25,442,4]
[null,null,null,null,null,null,null,null,null,null,null,null,null,null,null,null,null,null,null,null,null,null,null,null,null,null,null,null,null,null,null,null,null,null,null,"20250626 073100",22527,22533,22526.75,22532.25,387,6.75]
[null,null,null,null,null,null,null,null,null,null,null,null,null,null,null,null,null,null,null,null,null,null,null,null,null,null,null,null,null,null,null,null,null,null,null,"20250626 073200",22532.75,22533.25,22526.25,22527.5,252,7]
[null,null,null,null,null,null,null,null,null,null,null,null,null,null,null,null,null,null,null,null,null,null,null,null,null,null,null,null,null,null,null,null,null,null,null,"20250626 073300",22527.5,22528.25,22524.5,22527.5,207,3.75]
[null,null,null,null,null,null,null,null,null,null,null,null,null,null,null,null,null,null,null,null,null,null,null,null,null,null,null,null,null,null,null,null,null,null,null,"20250626 073400",22527.25,22529,22525.75,22527.5,99,3.25]
[null,null,null,null,null,null,null,null,null,null,null,null,null,null,null,null,null,null,null,null,null,null,null,null,null,null,null,null,null,null,null,null,null,null,null,"20250626 073500",22528,22528.5,22526,22526.75,128,2.5]
[null,null,null,null,null,null,null,null,null,null,null,null,null,null,null,null,null,null,null,null,null,null,null,null,null,null,null,null,null,null,null,null,null,null,null,"20250626 073600",22526,22530.5,22525.5,22530.25,184,5]
[null,null,null,null,null,null,null,null,null,null,null,null,null,null,null,null,null,null,null,null,null,null,null,null,null,null,null,null,null,null,null,null,null,null,null,"20250626 073700",22530.5,22531.25,22527.75,22529,271,3.5]
[null,null,null,null,null,null,null,null,null,null,null,null,null,null,null,null,null,null,null,null,null,null,null,null,null,null,null,null,null,null,null,null,null,null,null,"20250626 073800",22529.5,22531.25,22526.75,22531.25,148,4.5]
[null,null,null,null,null,null,null,null,null,null,null,null,null,null,null,null,null,null,null,null,null,null,null,null,null,null,null,null,null,null,null,null,null,null,null,"20250626 073900",22531.25,22534,22529.5,22532.75,240,4.5]
[null,null,null,null,null,null,null,null,null,null,null,null,null,null,null,null,null,null,null,null,null,null,null,null,null,null,null,null,null,null,null,null,null,null,null,"20250626 074000",22532.75,22537,22532.25,22532.75,374,4.75]
[null,null,null,null,null,null,null,null,null,null,null,null,null,null,null,null,null,null,null,null,null,null,null,null,null,null,null,null,null,null,null,null,null,null,null,"20250626 074100",22532,22534.75,22530.5,22531,226,4.25]
[null,null,null,null,null,null,null,null,null,null,null,null,null,null,null,null,null,null,null,null,null,null,null,null,null,null,null,null,null,null,null,null,null,null,null,"20250626 074200",22530.75,22532.25,22529.5,22531.75,126,2.75]
[null,null,null,null,null,null,null,null,null,null,null,null,null,null,null,null,null,null,null,null,null,null,null,null,null,null,null,null,null,null,null,null,null,null,null,"20250626 074300",22532,22533.75,22531.25,22531.25,110,2.5]
[null,null,null,null,null,null,null,null,null,null,null,null,null,null,null,null,null,null,null,null,null,null,null,null,null,null,null,null,null,null,null,null,null,null,null,"20250626 074400",22531.5,22533.75,22529.25,22532,210,4.5]
[null,null,null,null,null,null,null,null,null,null,null,null,null,null,null,null,null,null,null,null,null,null,null,null,null,null,null,null,null,null,null,null,null,null,null,"20250626 074500",22531.75,22535.25,22531.75,22533.5,134,3.5]
[null,null,null,null,null,null,null,null,null,null,null,null,null,null,null,null,null,null,null,null,null,null,null,null,null,null,null,null,null,null,null,null,null,null,null,"20250626 074600",22533.75,22535,22531.25,22534.75,206,3.75]
[null,null,null,null,null,null,null,null,null,null,null,null,null,null,null,null,null,null,null,null,null,null,null,null,null,null,null,null,null,null,null,null,null,null,null,"20250626 074700",22534.75,22536,22534,22534.75,176,2]
[null,null,null,null,null,null,null,null,null,null,null,null,null,null,null,null,null,null,null,null,null,null,null,null,null,null,null,null,null,null,null,null,null,null,null,"20250626 074800",22534.75,22535.75,22533,22534.5,75,2.75]
[null,null,null,null,null,null,null,null,null,null,null,null,null,null,null,null,null,null,null,null,null,null,null,null,null,null,null,null,null,null,null,null,null,null,null,"20250626 074900",22534.75,22536.75,22533.5,22535.5,125,3.25]
[null,null,null,null,null,null,null,null,null,null,null,null,null,null,null,null,null,null,null,null,null,null,null,null,null,null,null,null,null,null,null,null,null,null,null,"20250626 075000",22535.5,22537.5,22535.5,22535.75,113,2]
[null,null,null,null,null,null,null,null,null,null,null,null,null,null,null,null,null,null,null,null,null,null,null,null,null,null,null,null,null,null,null,null,null,null,null,"20250626 075100",22536,22537,22534,22535,89,3]
[null,null,null,null,null,null,null,null,null,null,null,null,null,null,null,null,null,null,null,null,null,null,null,null,null,null,null,null,null,null,null,null,null,null,null,"20250626 075200",22535,22537.25,22532.5,22536.75,108,4.75]
[null,null,null,null,null,null,null,null,null,null,null,null,null,null,null,null,null,null,null,null,null,null,null,null,null,null,null,null,null,null,null,null,null,null,null,"20250626 075300",22537.25,22541.25,22537,22539.25,426,4.5]
[null,null,null,null,null,null,null,null,null,null,null,null,null,null,null,null,null,null,null,null,null,null,null,null,null,null,null,null,null,null,null,null,null,null,null,"20250626 075400",22539.25,22539.75,22533.75,22534.75,246,6]
[null,null,null,null,null,null,null,null,null,null,null,null,null,null,null,null,null,null,null,null,null,null,null,null,null,null,null,null,null,null,null,null,null,null,null,"20250626 075500",22534.5,22535.5,22532.75,22534,159,2.75]
[null,null,null,null,null,null,null,null,null,null,null,null,null,null,null,null,null,null,null,null,null,null,null,null,null,null,null,null,null,null,null,null,null,null,null,"20250626 075600",22534.25,22535.5,22532,22532.25,198,3.5]
[null,null,null,null,null,null,null,null,null,null,null,null,null,null,null,null,null,null,null,null,null,null,null,null,null,null,null,null,null,null,null,null,null,null,null,"20250626 075700",22532,22534.25,22530,22532,342,4.25]
[null,null,null,null,null,null,null,null,null,null,null,null,null,null,null,null,null,null,null,null,null,null,null,null,null,null,null,null,null,null,null,null,null,null,null,"20250626 075800",22532.25,22534.25,22531.5,22534,151,2.75]
[null,null,null,null,null,null,null,null,null,null,null,null,null,null,null,null,null,null,null,null,null,null,null,null,null,null,null,null,null,null,null,null,null,null,null,"20250626 075900",22533.75,22536.25,22532.5,22534.75,150,3.75]
[null,null,null,null,null,null,null,null,null,null,null,null,null,null,null,null,null,null,null,null,null,null,null,null,null,null,null,null,null,null,null,null,null,null,null,"20250626 080000",22534.75,22535.25,22530.5,22531.75,145,4.75]
[null,null,null,null,null,null,null,null,null,null,null,null,null,null,null,null,null,null,null,null,null,null,null,null,null,null,null,null,null,null,null,null,null,null,null,"20250626 080100",22532,22533.5,22525.75,22530.5,703,7.75]
[null,null,null,null,null,null,null,null,null,null,null,null,null,null,null,null,null,null,null,null,null,null,null,null,null,null,null,null,null,null,null,null,null,null,null,"20250626 080200",22530.75,22533,22528.5,22530.5,227,4.5]
[null,null,null,null,null,null,null,null,null,null,null,null,null,null,null,null,null,null,null,null,null,null,null,null,null,null,null,null,null,null,null,null,null,null,null,"20250626 080300",22531,22536.25,22530.75,22534.5,311,5.75]
[null,null,null,null,null,null,null,null,null,null,null,null,null,null,null,null,null,null,null,null,null,null,null,null,null,null,null,null,null,null,null,null,null,null,null,"20250626 080400",22534.5,22536,22529.25,22530.75,189,6.75]
[null,null,null,null,null,null,null,null,null,null,null,null,null,null,null,null,null,null,null,null,null,null,null,null,null,null,null,null,null,null,null,null,null,null,null,"20250626 080500",22531.25,22539.5,22530.75,22537.75,346,8.75]
[null,null,null,null,null,null,null,null,null,null,null,null,null,null,null,null,null,null,null,null,null,null,null,null,null,null,null,null,null,null,null,null,null,null,null,"20250626 080600",22538.5,22542.75,22538.5,22542.25,536,5]
[null,null,null,null,null,null,null,null,null,null,null,null,null,null,null,null,null,null,null,null,null,null,null,null,null,null,null,null,null,null,null,null,null,null,null,"20250626 080700",22542,22551.25,22540.5,22543,1232,10.75]
[null,null,null,null,null,null,null,null,null,null,null,null,null,null,null,null,null,null,null,null,null,null,null,null,null,null,null,null,null,null,null,null,null,null,null,"20250626 080800",22543.5,22544.5,22538.25,22541.25,409,6.25]
[null,null,null,null,null,null,null,null,null,null,null,null,null,null,null,null,null,null,null,null,null,null,null,null,null,null,null,null,null,null,null,null,null,null,null,"20250626 080900",22541.5,22542,22537.75,22541.5,259,4.25]
[null,null,null,null,null,null,null,null,null,null,null,null,null,null,null,null,null,null,null,null,null,null,null,null,null,null,null,null,null,null,null,null,null,null,null,"20250626 081000",22541.25,22544,22540.5,22542,185,3.5]
[null,null,null,null,null,null,null,null,null,null,null,null,null,null,null,null,null,null,null,null,null,null,null,null,null,null,null,null,null,null,null,null,null,null,null,"20250626 081100",22542,22550.25,22541.5,22547.75,434,8.75]
[null,null,null,null,null,null,null,null,null,null,null,null,null,null,null,null,null,null,null,null,null,null,null,null,null,null,null,null,null,null,null,null,null,null,null,"20250626 081200",22548.25,22549.75,22544.25,22549.75,214,5.5]
[null,null,null,null,null,null,null,null,null,null,null,null,null,null,null,null,null,null,null,null,null,null,null,null,null,null,null,null,null,null,null,null,null,null,null,"20250626 081300",22549.75,22554,22549.5,22553.75,362,4.5]
[null,null,null,null,null,null,null,null,null,null,null,null,null,null,null,null,null,null,null,null,null,null,null,null,null,null,null,null,null,null,null,null,null,null,null,"20250626 081400",22553.5,22554.25,22549.5,22551,309,4.75]
[null,null,null,null,null,null,null,null,null,null,null,null,null,null,null,null,null,null,null,null,null,null,null,null,null,null,null,null,null,null,null,null,null,null,null,"20250626 081500",22550.75,22552.25,22548.5,22552,244,3.75]
[null,null,null,null,null,null,null,null,null,null,null,null,null,null,null,null,null,null,null,null,null,null,null,null,null,null,null,null,null,null,null,null,null,null,null,"20250626 081600",22551.75,22552.75,22550,22550,214,2.75]
[null,null,null,null,null,null,null,null,null,null,null,null,null,null,null,null,null,null,null,null,null,null,null,null,null,null,null,null,null,null,null,null,null,null,null,"20250626 081700",22550.5,22563,22550,22557.5,1227,13]
[null,null,null,null,null,null,null,null,null,null,null,null,null,null,null,null,null,null,null,null,null,null,null,null,null,null,null,null,null,null,null,null,null,null,null,"20250626 081800",22557,22557.5,22553.5,22554.5,476,{"$f":"MAX(AL259 - AM259, ABS(AL259 - AN258), ABS(AM259 - AN258))","v":4}]
[null,null,null,null,null,null,null,null,null,null,null,null,null,null,null,null,null,null,null,null,null,null,null,null,null,null,null,null,null,null,null,null,null,null,null,"20250626 081900",22554.25,22555.75,22553,22555.25,271,2.75]
[null,null,null,null,null,null,null,null,null,null,null,null,null,null,null,null,null,null,null,null,null,null,null,null,null,null,null,null,null,null,null,null,null,null,null,"20250626 082000",22555.25,22558.75,22554.75,22558.75,287,4]
[null,null,null,null,null,null,null,null,null,null,null,null,null,null,null,null,null,null,null,null,null,null,null,null,null,null,null,null,null,null,null,null,null,null,null,"20250626 082100",22558.5,22561,22556.5,22557.5,322,4.5]
[null,null,null,null,null,null,null,null,null,null,null,null,null,null,null,null,null,null,null,null,null,null,null,null,null,null,null,null,null,null,null,null,null,null,null,"20250626 082200",22557.25,22564.25,22556.25,22563.75,487,8]
[null,null,null,null,null,null,null,null,null,null,null,null,null,null,null,null,null,null,null,null,null,null,null,null,null,null,null,null,null,null,null,null,null,null,null,"20250626 082300",22563.5,22567.5,22562.5,22565.25,630,5]
[null,null,null,null,null,null,null,null,null,null,null,null,null,null,null,null,null,null,null,null,null,null,null,null,null,null,null,null,null,null,null,null,null,null,null,"20250626 082400",22565.5,22566.75,22561.5,22564.75,381,5.25]
[null,null,null,null,null,null,null,null,null,null,null,null,null,null,null,null,null,null,null,null,null,null,null,null,null,null,null,null,null,null,null,null,null,null,null,"20250626 082500",22564.75,22566.75,22564.5,22566.25,224,2.25]
[null,null,null,null,null,null,null,null,null,null,null,null,null,null,null,null,null,null,null,null,null,null,null,null,null,null,null,null,null,null,null,null,null,null,null,"20250626 082600",22566.5,22577.25,22565.5,22576,1103,11.75]
[null,null,null,null,null,null,null,null,null,null,null,null,null,null,null,null,null,null,null,null,null,null,null,null,null,null,null,null,null,null,null,null,null,null,null,"20250626 082700",22576.25,22576.5,22569,22569.75,571,7.5]
[null,null,null,null,null,null,null,null,null,null,null,null,null,null,null,null,null,null,null,null,null,null,null,null,null,null,null,null,null,null,null,null,null,null,null,"20250626 082800",22570,22572.25,22569,22569.5,318,3.25]
[null,null,null,null,null,null,null,null,null,null,null,null,null,null,null,null,null,null,null,null,null,null,null,null,null,null,null,null,null,null,null,null,null,null,null,"20250626 082900",22569.5,22574.5,22569.5,22572.75,312,5]
[null,null,null,null,null,null,null,null,null,null,null,null,null,null,null,null,null,null,null,null,null,null,null,null,null,null,null,null,null,null,null,null,null,null,null,"20250626 083000",22573,22574.5,22567.75,22568,372,6.75]
[null,null,null,null,null,null,null,null,null,null,null,null,null,null,null,null,null,null,null,null,null,null,null,null,null,null,null,null,null,null,null,null,null,null,null,"20250626 083100",22569,22570.25,22564.5,22566.5,449,5.75]
[null,null,null,null,null,null,null,null,null,null,null,null,null,null,null,null,null,null,null,null,null,null,null,null,null,null,null,null,null,null,null,null,null,null,null,"20250626 083200",22566.75,22566.75,22562,22562.5,324,4.75]
[null,null,null,null,null,null,null,null,null,null,null,null,null,null,null,null,null,null,null,null,null,null,null,null,null,null,null,null,null,null,null,null,null,null,null,"20250626 083300",22562.75,22564.5,22562.25,22563.75,159,2.25]
[null,null,null,null,null,null,null,null,null,null,null,null,null,null,null,null,null,null,null,null,null,null,null,null,null,null,null,null,null,null,null,null,null,null,null,"20250626 083400",22564,22566.25,22563.75,22566,189,2.5]
[null,null,null,null,null,null,null,null,null,null,null,null,null,null,null,null,null,null,null,null,null,null,null,null,null,null,null,null,null,null,null,null,null,null,null,"20250626 083500",22566.5,22567.5,22565.25,22567.5,164,2.25]
[null,null,null,null,null,null,null,null,null,null,null,null,null,null,null,null,null,null,null,null,null,null,null,null,null,null,null,null,null,null,null,null,null,null,null,"20250626 083600",22567,22574.25,22566.5,22572.25,467,7.75]
[null,null,null,null,null,null,null,null,null,null,null,null,null,null,null,null,null,null,null,null,null,null,null,null,null,null,null,null,null,null,null,null,null,null,null,"20250626 083700",22572.25,22575,22571.25,22572.5,333,3.75]
[null,null,null,null,null,null,null,null,null,null,null,null,null,null,null,null,null,null,null,null,null,null,null,null,null,null,null,null,null,null,null,null,null,null,null,"20250626 083800",22573,22576.5,22572.75,22574.5,290,4]
[null,null,null,null,null,null,null,null,null,null,null,null,null,null,null,null,null,null,null,null,null,null,null,null,null,null,null,null,null,null,null,null,null,null,null,"20250626 083900",22574.5,22576.25,22567,22567.25,357,9.25]
[null,null,null,null,null,null,null,null,null,null,null,null,null,null,null,null,null,null,null,null,null,null,null,null,null,null,null,null,null,null,null,null,null,null,null,"20250626 084000",22567.5,22568.5,22563,22563.25,360,5.5]
[null,null,null,null,null,null,null,null,null,null,null,null,null,null,null,null,null,null,null,null,null,null,null,null,null,null,null,null,null,null,null,null,null,null,null,"20250626 084100",22563.25,22567.75,22563.25,22563.75,243,4.5]
[null,null,null,null,null,null,null,null,null,null,null,null,null,null,null,null,null,null,null,null,null,null,null,null,null,null,null,null,null,null,null,null,null,null,null,"20250626 084200",22564,22565.25,22563,22563.5,191,2.25]
[null,null,null,null,null,null,null,null,null,null,null,null,null,null,null,null,null,null,null,null,null,null,null,null,null,null,null,null,null,null,null,null,null,null,null,"20250626 084300",22563.5,22565.75,22562.5,22563.75,194,3.25]
[null,null,null,null,null,null,null,null,null,null,null,null,null,null,null,null,null,null,null,null,null,null,null,null,null,null,null,null,null,null,null,null,null,null,null,"20250626 084400",22563.25,22564.5,22561.25,22561.5,166,3.25]
[null,null,null,null,null,null,null,null,null,null,null,null,null,null,null,null,null,null,null,null,null,null,null,null,null,null,null,null,null,null,null,null,null,null,null,"20250626 084500",22561.75,22564.25,22561,22563.75,173,3.25]
[null,null,null,null,null,null,null,null,null,null,null,null,null,null,null,null,null,null,null,null,null,null,null,null,null,null,null,null,null,null,null,null,null,null,null,"20250626 084600",22563.5,22567.75,22562,22565.75,281,5.75]
[null,null,null,null,null,null,null,null,null,null,null,null,null,null,null,null,null,null,null,null,null,null,null,null,null,null,null,null,null,null,null,null,null,null,null,"20250626 084700",22565.25,22565.25,22561.5,22562.5,161,4.25]
[null,null,null,null,null,null,null,null,null,null,null,null,null,null,null,null,null,null,null,null,null,null,null,null,null,null,null,null,null,null,null,null,null,null,null,"20250626 084800",22562.5,22564.25,22560.25,22561,134,4]
[null,null,null,null,null,null,null,null,null,null,null,null,null,null,null,null,null,null,null,null,null,null,null,null,null,null,null,null,null,null,null,null,null,null,null,"20250626 084900",22561,22563.5,22560.5,22561.75,158,3]
[null,null,null,null,null,null,null,null,null,null,null,null,null,null,null,null,null,null,null,null,null,null,null,null,null,null,null,null,null,null,null,null,null,null,null,"20250626 085000",22562.75,22564.5,22562.25,22564.25,106,2.75]
[null,null,null,null,null,null,null,null,null,null,null,null,null,null,null,null,null,null,null,null,null,null,null,null,null,null,null,null,null,null,null,null,null,null,null,"20250626 085100",22564,22565,22561.25,22562.5,99,3.75]
[null,null,null,null,null,null,null,null,null,null,null,null,null,null,null,null,null,null,null,null,null,null,null,null,null,null,null,null,null,null,null,null,null,null,null,"20250626 085200",22562.25,22567.5,22562.25,22562.75,245,5.25]
[null,null,null,null,null,null,null,null,null,null,null,null,null,null,null,null,null,null,null,null,null,null,null,null,null,null,null,null,null,null,null,null,null,null,null,"20250626 085300",22562.75,22563.5,22561.25,22562,102,2.25]
[null,null,null,null,null,null,null,null,null,null,null,null,null,null,null,null,null,null,null,null,null,null,null,null,null,null,null,null,null,null,null,null,null,null,null,"20250626 085400",22562,22563,22559.75,22561.5,193,3.25]
[null,null,null,null,null,null,null,null,null,null,null,null,null,null,null,null,null,null,null,null,null,null,null,null,null,null,null,null,null,null,null,null,null,null,null,"20250626 085500",22561.5,22563.75,22560.75,22562.75,138,3]
[null,null,null,null,null,null,null,null,null,null,null,null,null,null,null,null,null,null,null,null,null,null,null,null,null,null,null,null,null,null,null,null,null,null,null,"20250626 085600",22561.75,22563,22561,22562,111,2]
[null,null,null,null,null,null,null,null,null,null,null,null,null,null,null,null,null,null,null,null,null,null,null,null,null,null,null,null,null,null,null,null,null,null,null,"20250626 085700",22561.5,22561.75,22559.25,22560.75,195,2.75]
[null,null,null,null,null,null,null,null,null,null,null,null,null,null,null,null,null,null,null,null,null,null,null,null,null,null,null,null,null,null,null,null,null,null,null,"20250626 085800",22560.5,22562.25,22559.75,22561.5,120,2.5]
[null,null,null,null,null,null,null,null,null,null,null,null,null,null,null,null,null,null,null,null,null,null,null,null,null,null,null,null,null,null,null,null,null,null,null,"20250626 085900",22561.25,22561.75,22560.5,22561.25,66,1.25]
[null,null,null,null,null,null,null,null,null,null,null,null,null,null,null,null,null,null,null,null,null,null,null,null,null,null,null,null,null,null,null,null,null,null,null,"20250626 090000",22561,22562.5,22560.75,22561.5,107,1.75]
[null,null,null,null,null,null,null,null,null,null,null,null,null,null,null,null,null,null,null,null,null,null,null,null,null,null,null,null,null,null,null,null,null,null,null,"20250626 090100",22562,22562.75,22560.25,22561.75,166,2.5]
[null,null,null,null,null,null,null,null,null,null,null,null,null,null,null,null,null,null,null,null,null,null,null,null,null,null,null,null,null,null,null,null,null,null,null,"20250626 090200",22562.25,22565,22561.25,22563.75,173,3.75]
[null,null,null,null,null,null,null,null,null,null,null,null,null,null,null,null,null,null,null,null,null,null,null,null,null,null,null,null,null,null,null,null,null,null,null,"20250626 090300",22563.75,22565.25,22562,22563.75,115,3.25]
[null,null,null,null,null,null,null,null,null,null,null,null,null,null,null,null,null,null,null,null,null,null,null,null,null,null,null,null,null,null,null,null,null,null,null,"20250626 090400",22563.5,22566.25,22562.25,22565.25,151,4]
[null,null,null,null,null,null,null,null,null,null,null,null,null,null,null,null,null,null,null,null,null,null,null,null,null,null,null,null,null,null,null,null,null,null,null,"20250626 090500",22565.25,22566.5,22563.75,22566.5,198,2.75]
[null,null,null,null,null,null,null,null,null,null,null,null,null,null,null,null,null,null,null,null,null,null,null,null,null,null,null,null,null,null,null,null,null,null,null,"20250626 090600",22566,22566.5,22564,22564.75,130,2.5]
[null,null,null,null,null,null,null,null,null,null,null,null,null,null,null,null,null,null,null,null,null,null,null,null,null,null,null,null,null,null,null,null,null,null,null,"20250626 090700",22564.5,22566.5,22562,22563.5,131,4.5]
[null,null,null,null,null,null,null,null,null,null,null,null,null,null,null,null,null,null,null,null,null,null,null,null,null,null,null,null,null,null,null,null,null,null,null,"20250626 090800",22563.75,22564.5,22562.5,22564.25,97,2]
[null,null,null,null,null,null,null,null,null,null,null,null,null,null,null,null,null,null,null,null,null,null,null,null,null,null,null,null,null,null,null,null,null,null,null,"20250626 090900",22564,22564.25,22560,22562.75,193,4.25]
[null,null,null,null,null,null,null,null,null,null,null,null,null,null,null,null,null,null,null,null,null,null,null,null,null,null,null,null,null,null,null,null,null,null,null,"20250626 091000",22562.5,22564.5,22561.25,22561.5,110,3.25]
[null,null,null,null,null,null,null,null,null,null,null,null,null,null,null,null,null,null,null,null,null,null,null,null,null,null,null,null,null,null,null,null,null,null,null,"20250626 091100",22562.5,22563,22560,22561.25,175,3]
[null,null,null,null,null,null,null,null,null,null,null,null,null,null,null,null,null,null,null,null,null,null,null,null,null,null,null,null,null,null,null,null,null,null,null,"20250626 091200",22561,22561.5,22557.75,22559.5,206,3.75]
[null,null,null,null,null,null,null,null,null,null,null,null,null,null,null,null,null,null,null,null,null,null,null,null,null,null,null,null,null,null,null,null,null,null,null,"20250626 091300",22559,22559.5,22555.5,22556.5,420,4]
[null,null,null,null,null,null,null,null,null,null,null,null,null,null,null,null,null,null,null,null,null,null,null,null,null,null,null,null,null,null,null,null,null,null,null,"20250626 091400",22556.5,22556.75,22554.25,22555.25,249,2.5]
[null,null,null,null,null,null,null,null,null,null,null,null,null,null,null,null,null,null,null,null,null,null,null,null,null,null,null,null,null,null,null,null,null,null,null,"20250626 091500",22555.25,22558.5,22553.5,22556.75,319,5]
[null,null,null,null,null,null,null,null,null,null,null,null,null,null,null,null,null,null,null,null,null,null,null,null,null,null,null,null,null,null,null,null,null,null,null,"20250626 091600",22557,22561.25,22556.5,22560.5,215,4.75]
[null,null,null,null,null,null,null,null,null,null,null,null,null,null,null,null,null,null,null,null,null,null,null,null,null,null,null,null,null,null,null,null,null,null,null,"20250626 091700",22560.75,22567.5,22560.5,22563.25,413,7]
[null,null,null,null,null,null,null,null,null,null,null,null,null,null,null,null,null,null,null,null,null,null,null,null,null,null,null,null,null,null,null,null,null,null,null,"20250626 091800",22563,22565,22562,22562.75,116,3]
[null,null,null,null,null,null,null,null,null,null,null,null,null,null,null,null,null,null,null,null,null,null,null,null,null,null,null,null,null,null,null,null,null,null,null,"20250626 091900",22562.5,22562.5,22556.5,22559.25,321,6.25]
[null,null,null,null,null,null,null,null,null,null,null,null,null,null,null,null,null,null,null,null,null,null,null,null,null,null,null,null,null,null,null,null,null,null,null,"20250626 092000",22558.5,22559.25,22557.25,22557.5,100,2]
[null,null,null,null,null,null,null,null,null,null,null,null,null,null,null,null,null,null,null,null,null,null,null,null,null,null,null,null,null,null,null,null,null,null,null,"20250626 092100",22557.75,22561.25,22557.5,22559.25,121,3.75]
[null,null,null,null,null,null,null,null,null,null,null,null,null,null,null,null,null,null,null,null,null,null,null,null,null,null,null,null,null,null,null,null,null,null,null,"20250626 092200",22559.5,22560.75,22557.5,22557.75,94,{"$f":"MAX(AL323 - AM323, ABS(AL323 - AN322), ABS(AM323 - AN322))","v":3.25}]
[null,null,null,null,null,null,null,null,null,null,null,null,null,null,null,null,null,null,null,null,null,null,null,null,null,null,null,null,null,null,null,null,null,null,null,"20250626 092300",22557.5,22560,22557,22559.5,247,3]
[null,null,null,null,null,null,null,null,null,null,null,null,null,null,null,null,null,null,null,null,null,null,null,null,null,null,null,null,null,null,null,null,null,null,null,"20250626 092400",22559.5,22561.5,22559,22559,262,2.5]
[null,null,null,null,null,null,null,null,null,null,null,null,null,null,null,null,null,null,null,null,null,null,null,null,null,null,null,null,null,null,null,null,null,null,null,"20250626 092500",22559,22559.75,22553.75,22555,225,6]
[null,null,null,null,null,null,null,null,null,null,null,null,null,null,null,null,null,null,null,null,null,null,null,null,null,null,null,null,null,null,null,null,null,null,null,"20250626 092600",22554.5,22557,22553,22555.25,405,4]
[null,null,null,null,null,null,null,null,null,null,null,null,null,null,null,null,null,null,null,null,null,null,null,null,null,null,null,null,null,null,null,null,null,null,null,"20250626 092700",22555,22559.25,22554.5,22557.5,199,4.75]
[null,null,null,null,null,null,null,null,null,null,null,null,null,null,null,null,null,null,null,null,null,null,null,null,null,null,null,null,null,null,null,null,null,null,null,"20250626 092800",22558,22558,22552,22553.25,227,6]
[null,null,null,null,null,null,null,null,null,null,null,null,null,null,null,null,null,null,null,null,null,null,null,null,null,null,null,null,null,null,null,null,null,null,null,"20250626 092900",22553.75,22554.75,22552,22552.25,141,2.75]
[null,null,null,null,null,null,null,null,null,null,null,null,null,null,null,null,null,null,null,null,null,null,null,null,null,null,null,null,null,null,null,null,null,null,null,"20250626 093000",22552.25,22555.75,22550,22554.75,380,5.75]
[null,null,null,null,null,null,null,null,null,null,null,null,null,null,null,null,null,null,null,null,null,null,null,null,null,null,null,null,null,null,null,null,null,null,null,"20250626 093100",22554.5,22555.75,22551,22555.25,259,4.75]
[null,null,null,null,null,null,null,null,null,null,null,null,null,null,null,null,null,null,null,null,null,null,null,null,null,null,null,null,null,null,null,null,null,null,null,"20250626 093200",22555,22555,22542.75,22546.25,1127,12.5]
[null,null,null,null,null,null,null,null,null,null,null,null,null,null,null,null,null,null,null,null,null,null,null,null,null,null,null,null,null,null,null,null,null,null,null,"20250626 093300",22546.5,22552.5,22546,22552.5,301,6.5]
[null,null,null,null,null,null,null,null,null,null,null,null,null,null,null,null,null,null,null,null,null,null,null,null,null,null,null,null,null,null,null,null,null,null,null,"20250626 093400",22552.5,22553.75,22550.75,22551.25,164,3]
[null,null,null,null,null,null,null,null,null,null,null,null,null,null,null,null,null,null,null,null,null,null,null,null,null,null,null,null,null,null,null,null,null,null,null,"20250626 093500",22551.5,22553.25,22550.25,22553.25,146,3]
[null,null,null,null,null,null,null,null,null,null,null,null,null,null,null,null,null,null,null,null,null,null,null,null,null,null,null,null,null,null,null,null,null,null,null,"20250626 093600",22553,22555.25,22552.5,22554.25,199,2.75]
[null,null,null,null,null,null,null,null,null,null,null,null,null,null,null,null,null,null,null,null,null,null,null,null,null,null,null,null,null,null,null,null,null,null,null,"20250626 093700",22554,22555.75,22552.75,22552.75,137,3]
[null,null,null,null,null,null,null,null,null,null,null,null,null,null,null,null,null,null,null,null,null,null,null,null,null,null,null,null,null,null,null,null,null,null,null,"20250626 093800",22552.75,22553.75,22550.75,22551.25,193,3]
[null,null,null,null,null,null,null,null,null,null,null,null,null,null,null,null,null,null,null,null,null,null,null,null,null,null,null,null,null,null,null,null,null,null,null,"20250626 093900",22552.25,22555.5,22549.25,22555,308,6.25]
[null,null,null,null,null,null,null,null,null,null,null,null,null,null,null,null,null,null,null,null,null,null,null,null,null,null,null,null,null,null,null,null,null,null,null,"20250626 094000",22554.25,22555,22549.75,22549.75,133,5.25]
[null,null,null,null,null,null,null,null,null,null,null,null,null,null,null,null,null,null,null,null,null,null,null,null,null,null,null,null,null,null,null,null,null,null,null,"20250626 094100",22549.75,22550.75,22547,22549.25,226,3.75]
[null,null,null,null,null,null,null,null,null,null,null,null,null,null,null,null,null,null,null,null,null,null,null,null,null,null,null,null,null,null,null,null,null,null,null,"20250626 094200",22549.25,22552,22548.75,22549.25,107,3.25]
[null,null,null,null,null,null,null,null,null,null,null,null,null,null,null,null,null,null,null,null,null,null,null,null,null,null,null,null,null,null,null,null,null,null,null,"20250626 094300",22549.75,22550.5,22544.5,22546.25,236,6]
[null,null,null,null,null,null,null,null,null,null,null,null,null,null,null,null,null,null,null,null,null,null,null,null,null,null,null,null,null,null,null,null,null,null,null,"20250626 094400",22546,22548.25,22545.75,22547,137,2.5]
[null,null,null,null,null,null,null,null,null,null,null,null,null,null,null,null,null,null,null,null,null,null,null,null,null,null,null,null,null,null,null,null,null,null,null,"20250626 094500",22547.25,22549.25,22546.75,22547.5,163,2.5]
[null,null,null,null,null,null,null,null,null,null,null,null,null,null,null,null,null,null,null,null,null,null,null,null,null,null,null,null,null,null,null,null,null,null,null,"20250626 094600",22547.5,22549,22545.75,22547.5,145,3.25]
[null,null,null,null,null,null,null,null,null,null,null,null,null,null,null,null,null,null,null,null,null,null,null,null,null,null,null,null,null,null,null,null,null,null,null,"20250626 094700",22547.5,22548.75,22545.5,22546.75,119,3.25]
[null,null,null,null,null,null,null,null,null,null,null,null,null,null,null,null,null,null,null,null,null,null,null,null,null,null,null,null,null,null,null,null,null,null,null,"20250626 094800",22546.75,22551.75,22546.75,22550.5,150,5]
[null,null,null,null,null,null,null,null,null,null,null,null,null,null,null,null,null,null,null,null,null,null,null,null,null,null,null,null,null,null,null,null,null,null,null,"20250626 094900",22550.5,22551.75,22548.75,22551.25,107,3]
[null,null,null,null,null,null,null,null,null,null,null,null,null,null,null,null,null,null,null,null,null,null,null,null,null,null,null,null,null,null,null,null,null,null,null,"20250626 095000",22550.75,22553,22550.5,22550.75,149,2.5]
[null,null,null,null,null,null,null,null,null,null,null,null,null,null,null,null,null,null,null,null,null,null,null,null,null,null,null,null,null,null,null,null,null,null,null,"20250626 095100",22551.5,22551.75,22549.5,22551.75,110,2.25]
[null,null,null,null,null,null,null,null,null,null,null,null,null,null,null,null,null,null,null,null,null,null,null,null,null,null,null,null,null,null,null,null,null,null,null,"20250626 095200",22551.5,22553.75,22550.5,22552,209,3.25]
[null,null,null,null,null,null,null,null,null,null,null,null,null,null,null,null,null,null,null,null,null,null,null,null,null,null,null,null,null,null,null,null,null,null,null,"20250626 095300",22552,22553.5,22552,22553.25,128,1.5]
[null,null,null,null,null,null,null,null,null,null,null,null,null,null,null,null,null,null,null,null,null,null,null,null,null,null,null,null,null,null,null,null,null,null,null,"20250626 095400",22553.25,22553.75,22551.25,22552.75,116,2.5]
[null,null,null,null,null,null,null,null,null,null,null,null,null,null,null,null,null,null,null,null,null,null,null,null,null,null,null,null,null,null,null,null,null,null,null,"20250626 095500",22552.5,22553.75,22552,22553.5,153,1.75]
[null,null,null,null,null,null,null,null,null,null,null,null,null,null,null,null,null,null,null,null,null,null,null,null,null,null,null,null,null,null,null,null,null,null,null,"20250626 095600",22553.75,22554.5,22552.75,22553.25,89,1.75]
[null,null,null,null,null,null,null,null,null,null,null,null,null,null,null,null,null,null,null,null,null,null,null,null,null,null,null,null,null,null,null,null,null,null,null,"20250626 095700",22553.25,22554,22550.75,22551.75,134,3.25]
[null,null,null,null,null,null,null,null,null,null,null,null,null,null,null,null,null,null,null,null,null,null,null,null,null,null,null,null,null,null,null,null,null,null,null,"20250626 095800",22551.5,22552.5,22549.5,22549.5,178,3]
[null,null,null,null,null,null,null,null,null,null,null,null,null,null,null,null,null,null,null,null,null,null,null,null,null,null,null,null,null,null,null,null,null,null,null,"20250626 095900",22550,22553,22548.75,22552.75,195,4.25]
[null,null,null,null,null,null,null,null,null,null,null,null,null,null,null,null,null,null,null,null,null,null,null,null,null,null,null,null,null,null,null,null,null,null,null,"20250626 100000",22552.75,22552.75,22550,22550,83,2.75]
[null,null,null,null,null,null,null,null,null,null,null,null,null,null,null,null,null,null,null,null,null,null,null,null,null,null,null,null,null,null,null,null,null,null,null,"20250626 100100",22550.5,22553.75,22549.75,22551.25,183,4]
[null,null,null,null,null,null,null,null,null,null,null,null,null,null,null,null,null,null,null,null,null,null,null,null,null,null,null,null,null,null,null,null,null,null,null,"20250626 100200",22551.5,22553,22551,22551.25,125,2]
[null,null,null,null,null,null,null,null,null,null,null,null,null,null,null,null,null,null,null,null,null,null,null,null,null,null,null,null,null,null,null,null,null,null,null,"20250626 100300",22551.5,22553.5,22545.5,22547,447,8]
[null,null,null,null,null,null,null,null,null,null,null,null,null,null,null,null,null,null,null,null,null,null,null,null,null,null,null,null,null,null,null,null,null,null,null,"20250626 100400",22547.75,22550.5,22541.25,22543.75,642,9.25]
[null,null,null,null,null,null,null,null,null,null,null,null,null,null,null,null,null,null,null,null,null,null,null,null,null,null,null,null,null,null,null,null,null,null,null,"20250626 100500",22544,22547,22542,22547,253,5]
[null,null,null,null,null,null,null,null,null,null,null,null,null,null,null,null,null,null,null,null,null,null,null,null,null,null,null,null,null,null,null,null,null,null,null,"20250626 100600",22547,22555.75,22546.25,22555,443,9.5]
[null,null,null,null,null,null,null,null,null,null,null,null,null,null,null,null,null,null,null,null,null,null,null,null,null,null,null,null,null,null,null,null,null,null,null,"20250626 100700",22555.5,22558,22553.75,22557.25,371,4.25]
[null,null,null,null,null,null,null,null,null,null,null,null,null,null,null,null,null,null,null,null,null,null,null,null,null,null,null,null,null,null,null,null,null,null,null,"20250626 100800",22557.5,22559,22556.25,22557.25,353,2.75]
[null,null,null,null,null,null,null,null,null,null,null,null,null,null,null,null,null,null,null,null,null,null,null,null,null,null,null,null,null,null,null,null,null,null,null,"20250626 100900",22557.25,22559.5,22556.25,22558,251,3.25]
[null,null,null,null,null,null,null,null,null,null,null,null,null,null,null,null,null,null,null,null,null,null,null,null,null,null,null,null,null,null,null,null,null,null,null,"20250626 101000",22557,22559.25,22556.5,22556.75,150,2.75]
[null,null,null,null,null,null,null,null,null,null,null,null,null,null,null,null,null,null,null,null,null,null,null,null,null,null,null,null,null,null,null,null,null,null,null,"20250626 101100",22556.25,22561.75,22556,22561,353,5.75]
[null,null,null,null,null,null,null,null,null,null,null,null,null,null,null,null,null,null,null,null,null,null,null,null,null,null,null,null,null,null,null,null,null,null,null,"20250626 101200",22561.5,22563,22559.5,22562.5,324,3.5]
[null,null,null,null,null,null,null,null,null,null,null,null,null,null,null,null,null,null,null,null,null,null,null,null,null,null,null,null,null,null,null,null,null,null,null,"20250626 101300",22562.5,22562.5,22558.75,22561.5,217,3.75]
[null,null,null,null,null,null,null,null,null,null,null,null,null,null,null,null,null,null,null,null,null,null,null,null,null,null,null,null,null,null,null,null,null,null,null,"20250626 101400",22561,22562,22560.5,22561,77,1.5]
[null,null,null,null,null,null,null,null,null,null,null,null,null,null,null,null,null,null,null,null,null,null,null,null,null,null,null,null,null,null,null,null,null,null,null,"20250626 101500",22561.5,22563,22561.5,22562.5,128,2]
[null,null,null,null,null,null,null,null,null,null,null,null,null,null,null,null,null,null,null,null,null,null,null,null,null,null,null,null,null,null,null,null,null,null,null,"20250626 101600",22562.5,22567,22561.75,22565.75,454,5.25]
[null,null,null,null,null,null,null,null,null,null,null,null,null,null,null,null,null,null,null,null,null,null,null,null,null,null,null,null,null,null,null,null,null,null,null,"20250626 101700",22566,22567.25,22561,22562.25,330,6.25]
[null,null,null,null,null,null,null,null,null,null,null,null,null,null,null,null,null,null,null,null,null,null,null,null,null,null,null,null,null,null,null,null,null,null,null,"20250626 101800",22562.5,22564.25,22562,22564,120,2.25]
[null,null,null,null,null,null,null,null,null,null,null,null,null,null,null,null,null,null,null,null,null,null,null,null,null,null,null,null,null,null,null,null,null,null,null,"20250626 101900",22564,22565.75,22562,22565.25,155,3.75]
[null,null,null,null,null,null,null,null,null,null,null,null,null,null,null,null,null,null,null,null,null,null,null,null,null,null,null,null,null,null,null,null,null,null,null,"20250626 102000",22565.25,22570.5,22565.25,22570,352,5.25]
[null,null,null,null,null,null,null,null,null,null,null,null,null,null,null,null,null,null,null,null,null,null,null,null,null,null,null,null,null,null,null,null,null,null,null,"20250626 102100",22569.75,22574.75,22569.25,22574,430,5.5]
[null,null,null,null,null,null,null,null,null,null,null,null,null,null,null,null,null,null,null,null,null,null,null,null,null,null,null,null,null,null,null,null,null,null,null,"20250626 102200",22573.75,22575.75,22573,22573.5,545,2.75]
[null,null,null,null,null,null,null,null,null,null,null,null,null,null,null,null,null,null,null,null,null,null,null,null,null,null,null,null,null,null,null,null,null,null,null,"20250626 102300",22573.75,22581.75,22573.75,22576.5,1010,8.25]
[null,null,null,null,null,null,null,null,null,null,null,null,null,null,null,null,null,null,null,null,null,null,null,null,null,null,null,null,null,null,null,null,null,null,null,"20250626 102400",22576.5,22577.25,22573.5,22573.5,299,3.75]
[null,null,null,null,null,null,null,null,null,null,null,null,null,null,null,null,null,null,null,null,null,null,null,null,null,null,null,null,null,null,null,null,null,null,null,"20250626 102500",22574,22575.5,22572.25,22574.25,210,3.25]
[null,null,null,null,null,null,null,null,null,null,null,null,null,null,null,null,null,null,null,null,null,null,null,null,null,null,null,null,null,null,null,null,null,null,null,"20250626 102600",22574.5,22578.5,22574.25,22578,223,{"$f":"MAX(AL387 - AM387, ABS(AL387 - AN386), ABS(AM387 - AN386))","v":4.25}]
[null,null,null,null,null,null,null,null,null,null,null,null,null,null,null,null,null,null,null,null,null,null,null,null,null,null,null,null,null,null,null,null,null,null,null,"20250626 102700",22577.75,22578.75,22574.5,22575.75,150,4.25]
[null,null,null,null,null,null,null,null,null,null,null,null,null,null,null,null,null,null,null,null,null,null,null,null,null,null,null,null,null,null,null,null,null,null,null,"20250626 102800",22575.25,22575.75,22574.5,22574.75,140,1.25]
[null,null,null,null,null,null,null,null,null,null,null,null,null,null,null,null,null,null,null,null,null,null,null,null,null,null,null,null,null,null,null,null,null,null,null,"20250626 102900",22574.25,22576,22571.25,22572.5,314,4.75]
[null,null,null,null,null,null,null,null,null,null,null,null,null,null,null,null,null,null,null,null,null,null,null,null,null,null,null,null,null,null,null,null,null,null,null,"20250626 103000",22572,22572.75,22571,22571.75,177,1.75]
[null,null,null,null,null,null,null,null,null,null,null,null,null,null,null,null,null,null,null,null,null,null,null,null,null,null,null,null,null,null,null,null,null,null,null,"20250626 103100",22572,22574.5,22571.75,22572.75,232,2.75]
[null,null,null,null,null,null,null,null,null,null,null,null,null,null,null,null,null,null,null,null,null,null,null,null,null,null,null,null,null,null,null,null,null,null,null,"20250626 103200",22572.75,22576.5,22572.75,22575.25,164,3.75]
[null,null,null,null,null,null,null,null,null,null,null,null,null,null,null,null,null,null,null,null,null,null,null,null,null,null,null,null,null,null,null,null,null,null,null,"20250626 103300",22575.5,22575.75,22572.75,22573.25,114,3]
[null,null,null,null,null,null,null,null,null,null,null,null,null,null,null,null,null,null,null,null,null,null,null,null,null,null,null,null,null,null,null,null,null,null,null,"20250626 103400",22573,22574.75,22572.5,22572.5,126,2.25]
[null,null,null,null,null,null,null,null,null,null,null,null,null,null,null,null,null,null,null,null,null,null,null,null,null,null,null,null,null,null,null,null,null,null,null,"20250626 103500",22572.75,22573.5,22571,22571.75,231,2.5]
[null,null,null,null,null,null,null,null,null,null,null,null,null,null,null,null,null,null,null,null,null,null,null,null,null,null,null,null,null,null,null,null,null,null,null,"20250626 103600",22572.25,22573,22571,22571.75,176,2]
[null,null,null,null,null,null,null,null,null,null,null,null,null,null,null,null,null,null,null,null,null,null,null,null,null,null,null,null,null,null,null,null,null,null,null,"20250626 103700",22572,22572.75,22570.75,22572.75,91,2]
[null,null,null,null,null,null,null,null,null,null,null,null,null,null,null,null,null,null,null,null,null,null,null,null,null,null,null,null,null,null,null,null,null,null,null,"20250626 103800",22572.75,22573.25,22570.75,22572.25,156,2.5]
[null,null,null,null,null,null,null,null,null,null,null,null,null,null,null,null,null,null,null,null,null,null,null,null,null,null,null,null,null,null,null,null,null,null,null,"20250626 103900",22572,22572.75,22567.5,22569.5,321,5.25]
[null,null,null,null,null,null,null,null,null,null,null,null,null,null,null,null,null,null,null,null,null,null,null,null,null,null,null,null,null,null,null,null,null,null,null,"20250626 104000",22569.75,22571.75,22568.5,22571.25,208,3.25]
[null,null,null,null,null,null,null,null,null,null,null,null,null,null,null,null,null,null,null,null,null,null,null,null,null,null,null,null,null,null,null,null,null,null,null,"20250626 104100",22571,22573.25,22568.75,22571,203,4.5]
[null,null,null,null,null,null,null,null,null,null,null,null,null,null,null,null,null,null,null,null,null,null,null,null,null,null,null,null,null,null,null,null,null,null,null,"20250626 104200",22570.75,22571.75,22568.25,22568.75,133,3.5]
[null,null,null,null,null,null,null,null,null,null,null,null,null,null,null,null,null,null,null,null,null,null,null,null,null,null,null,null,null,null,null,null,null,null,null,"20250626 104300",22568.25,22569.25,22567.5,22567.75,129,1.75]
[null,null,null,null,null,null,null,null,null,null,null,null,null,null,null,null,null,null,null,null,null,null,null,null,null,null,null,null,null,null,null,null,null,null,null,"20250626 104400",22567.5,22570,22566.75,22566.75,174,3.25]
[null,null,null,null,null,null,null,null,null,null,null,null,null,null,null,null,null,null,null,null,null,null,null,null,null,null,null,null,null,null,null,null,null,null,null,"20250626 104500",22567,22567.5,22563.5,22564.75,350,4]
[null,null,null,null,null,null,null,null,null,null,null,null,null,null,null,null,null,null,null,null,null,null,null,null,null,null,null,null,null,null,null,null,null,null,null,"20250626 104600",22564.5,22565.75,22563.75,22564.25,178,2]
[null,null,null,null,null,null,null,null,null,null,null,null,null,null,null,null,null,null,null,null,null,null,null,null,null,null,null,null,null,null,null,null,null,null,null,"20250626 104700",22564.75,22564.75,22561,22563.75,376,3.75]
[null,null,null,null,null,null,null,null,null,null,null,null,null,null,null,null,null,null,null,null,null,null,null,null,null,null,null,null,null,null,null,null,null,null,null,"20250626 104800",22564,22566.25,22562.75,22565.5,242,3.5]
[null,null,null,null,null,null,null,null,null,null,null,null,null,null,null,null,null,null,null,null,null,null,null,null,null,null,null,null,null,null,null,null,null,null,null,"20250626 104900",22565.5,22566.25,22564.5,22565.25,92,1.75]
[null,null,null,null,null,null,null,null,null,null,null,null,null,null,null,null,null,null,null,null,null,null,null,null,null,null,null,null,null,null,null,null,null,null,null,"20250626 105000",22565,22569,22565,22567.25,183,4]
[null,null,null,null,null,null,null,null,null,null,null,null,null,null,null,null,null,null,null,null,null,null,null,null,null,null,null,null,null,null,null,null,null,null,null,"20250626 105100",22567.25,22570.25,22566.75,22569.25,205,3.5]
[null,null,null,null,null,null,null,null,null,null,null,null,null,null,null,null,null,null,null,null,null,null,null,null,null,null,null,null,null,null,null,null,null,null,null,"20250626 105200",22570,22573,22569,22572.25,354,4]
[null,null,null,null,null,null,null,null,null,null,null,null,null,null,null,null,null,null,null,null,null,null,null,null,null,null,null,null,null,null,null,null,null,null,null,"20250626 105300",22571.5,22571.75,22563.75,22565.25,250,8.5]
[null,null,null,null,null,null,null,null,null,null,null,null,null,null,null,null,null,null,null,null,null,null,null,null,null,null,null,null,null,null,null,null,null,null,null,"20250626 105400",22564.75,22565.5,22560.5,22561.5,221,5]
[null,null,null,null,null,null,null,null,null,null,null,null,null,null,null,null,null,null,null,null,null,null,null,null,null,null,null,null,null,null,null,null,null,null,null,"20250626 105500",22562,22563,22560,22562,205,3]
[null,null,null,null,null,null,null,null,null,null,null,null,null,null,null,null,null,null,null,null,null,null,null,null,null,null,null,null,null,null,null,null,null,null,null,"20250626 105600",22561.5,22562.5,22559.75,22561.75,408,2.75]
[null,null,null,null,null,null,null,null,null,null,null,null,null,null,null,null,null,null,null,null,null,null,null,null,null,null,null,null,null,null,null,null,null,null,null,"20250626 105700",22562,22562.25,22556.5,22557,369,5.75]
[null,null,null,null,null,null,null,null,null,null,null,null,null,null,null,null,null,null,null,null,null,null,null,null,null,null,null,null,null,null,null,null,null,null,null,"20250626 105800",22557.25,22560.25,22556.5,22557.75,259,3.75]
[null,null,null,null,null,null,null,null,null,null,null,null,null,null,null,null,null,null,null,null,null,null,null,null,null,null,null,null,null,null,null,null,null,null,null,"20250626 105900",22557.75,22559,22556.5,22556.5,114,2.5]
[null,null,null,null,null,null,null,null,null,null,null,null,null,null,null,null,null,null,null,null,null,null,null,null,null,null,null,null,null,null,null,null,null,null,null,"20250626 110000",22557.25,22558.5,22556,22557,161,2.5]
[null,null,null,null,null,null,null,null,null,null,null,null,null,null,null,null,null,null,null,null,null,null,null,null,null,null,null,null,null,null,null,null,null,null,null,"20250626 110100",22557.5,22559.75,22555,22557.25,384,4.75]
[null,null,null,null,null,null,null,null,null,null,null,null,null,null,null,null,null,null,null,null,null,null,null,null,null,null,null,null,null,null,null,null,null,null,null,"20250626 110200",22558.75,22560.5,22555.5,22557.75,345,5]
[null,null,null,null,null,null,null,null,null,null,null,null,null,null,null,null,null,null,null,null,null,null,null,null,null,null,null,null,null,null,null,null,null,null,null,"20250626 110300",22558.25,22560,22555.5,22557.25,200,4.5]
[null,null,null,null,null,null,null,null,null,null,null,null,null,null,null,null,null,null,null,null,null,null,null,null,null,null,null,null,null,null,null,null,null,null,null,"20250626 110400",22557.25,22559.25,22555,22555.5,187,4.25]
[null,null,null,null,null,null,null,null,null,null,null,null,null,null,null,null,null,null,null,null,null,null,null,null,null,null,null,null,null,null,null,null,null,null,null,"20250626 110500",22556.25,22558.5,22554.25,22558.5,376,4.25]
[null,null,null,null,null,null,null,null,null,null,null,null,null,null,null,null,null,null,null,null,null,null,null,null,null,null,null,null,null,null,null,null,null,null,null,"20250626 110600",22558,22562,22557,22560.75,345,5]
[null,null,null,null,null,null,null,null,null,null,null,null,null,null,null,null,null,null,null,null,null,null,null,null,null,null,null,null,null,null,null,null,null,null,null,"20250626 110700",22560.75,22561.75,22558.25,22561.75,159,3.5]
[null,null,null,null,null,null,null,null,null,null,null,null,null,null,null,null,null,null,null,null,null,null,null,null,null,null,null,null,null,null,null,null,null,null,null,"20250626 110800",22562,22562.75,22560.5,22561.5,209,2.25]
[null,null,null,null,null,null,null,null,null,null,null,null,null,null,null,null,null,null,null,null,null,null,null,null,null,null,null,null,null,null,null,null,null,null,null,"20250626 110900",22561.5,22569.75,22561,22566.5,585,8.75]
[null,null,null,null,null,null,null,null,null,null,null,null,null,null,null,null,null,null,null,null,null,null,null,null,null,null,null,null,null,null,null,null,null,null,null,"20250626 111000",22566.5,22570.5,22565.5,22569.25,520,5]
[null,null,null,null,null,null,null,null,null,null,null,null,null,null,null,null,null,null,null,null,null,null,null,null,null,null,null,null,null,null,null,null,null,null,null,"20250626 111100",22569,22571,22567.25,22569.5,351,3.75]
[null,null,null,null,null,null,null,null,null,null,null,null,null,null,null,null,null,null,null,null,null,null,null,null,null,null,null,null,null,null,null,null,null,null,null,"20250626 111200",22569.25,22569.25,22564,22567,306,5.5]
[null,null,null,null,null,null,null,null,null,null,null,null,null,null,null,null,null,null,null,null,null,null,null,null,null,null,null,null,null,null,null,null,null,null,null,"20250626 111300",22567,22571,22564.5,22569.5,266,6.5]
[null,null,null,null,null,null,null,null,null,null,null,null,null,null,null,null,null,null,null,null,null,null,null,null,null,null,null,null,null,null,null,null,null,null,null,"20250626 111400",22569.75,22572.75,22569.75,22572,346,3.25]
[null,null,null,null,null,null,null,null,null,null,null,null,null,null,null,null,null,null,null,null,null,null,null,null,null,null,null,null,null,null,null,null,null,null,null,"20250626 111500",22571.75,22573,22568,22569.25,213,5]
[null,null,null,null,null,null,null,null,null,null,null,null,null,null,null,null,null,null,null,null,null,null,null,null,null,null,null,null,null,null,null,null,null,null,null,"20250626 111600",22569.25,22569.75,22565.75,22567.5,193,4]
[null,null,null,null,null,null,null,null,null,null,null,null,null,null,null,null,null,null,null,null,null,null,null,null,null,null,null,null,null,null,null,null,null,null,null,"20250626 111700",22567.75,22570.75,22562.75,22563.5,334,8]
[null,null,null,null,null,null,null,null,null,null,null,null,null,null,null,null,null,null,null,null,null,null,null,null,null,null,null,null,null,null,null,null,null,null,null,"20250626 111800",22563.25,22564.5,22560,22563.25,269,4.5]
[null,null,null,null,null,null,null,null,null,null,null,null,null,null,null,null,null,null,null,null,null,null,null,null,null,null,null,null,null,null,null,null,null,null,null,"20250626 111900",22562.75,22571.5,22562.75,22571,369,8.75]
[null,null,null,null,null,null,null,null,null,null,null,null,null,null,null,null,null,null,null,null,null,null,null,null,null,null,null,null,null,null,null,null,null,null,null,"20250626 112000",22571.5,22574.5,22570,22571,338,4.5]
[null,null,null,null,null,null,null,null,null,null,null,null,null,null,null,null,null,null,null,null,null,null,null,null,null,null,null,null,null,null,null,null,null,null,null,"20250626 112100",22570.75,22572.25,22569.75,22570.75,143,2.5]
[null,null,null,null,null,null,null,null,null,null,null,null,null,null,null,null,null,null,null,null,null,null,null,null,null,null,null,null,null,null,null,null,null,null,null,"20250626 112200",22570.5,22572.75,22569.25,22569.25,157,3.5]
[null,null,null,null,null,null,null,null,null,null,null,null,null,null,null,null,null,null,null,null,null,null,null,null,null,null,null,null,null,null,null,null,null,null,null,"20250626 112300",22569.25,22569.5,22567,22567.5,169,2.5]
[null,null,null,null,null,null,null,null,null,null,null,null,null,null,null,null,null,null,null,null,null,null,null,null,null,null,null,null,null,null,null,null,null,null,null,"20250626 112400",22567.25,22568.25,22565.5,22566.75,171,2.75]
[null,null,null,null,null,null,null,null,null,null,null,null,null,null,null,null,null,null,null,null,null,null,null,null,null,null,null,null,null,null,null,null,null,null,null,"20250626 112500",22566.5,22567.25,22563.5,22564,215,3.75]
[null,null,null,null,null,null,null,null,null,null,null,null,null,null,null,null,null,null,null,null,null,null,null,null,null,null,null,null,null,null,null,null,null,null,null,"20250626 112600",22564.25,22564.25,22558.25,22559.25,464,6]
[null,null,null,null,null,null,null,null,null,null,null,null,null,null,null,null,null,null,null,null,null,null,null,null,null,null,null,null,null,null,null,null,null,null,null,"20250626 112700",22559.75,22561.75,22559.5,22561.75,232,2.5]
[null,null,null,null,null,null,null,null,null,null,null,null,null,null,null,null,null,null,null,null,null,null,null,null,null,null,null,null,null,null,null,null,null,null,null,"20250626 112800",22561.75,22564.25,22559.25,22564,274,5]
[null,null,null,null,null,null,null,null,null,null,null,null,null,null,null,null,null,null,null,null,null,null,null,null,null,null,null,null,null,null,null,null,null,null,null,"20250626 112900",22563.5,22564.5,22559.25,22562.5,193,5.25]
[null,null,null,null,null,null,null,null,null,null,null,null,null,null,null,null,null,null,null,null,null,null,null,null,null,null,null,null,null,null,null,null,null,null,null,"20250626 113000",22562.5,22566.25,22560.75,22566.25,244,{"$f":"MAX(AL451 - AM451, ABS(AL451 - AN450), ABS(AM451 - AN450))","v":5.5}]
[null,null,null,null,null,null,null,null,null,null,null,null,null,null,null,null,null,null,null,null,null,null,null,null,null,null,null,null,null,null,null,null,null,null,null,"20250626 113100",22565.5,22568.25,22564,22565,255,4.25]
[null,null,null,null,null,null,null,null,null,null,null,null,null,null,null,null,null,null,null,null,null,null,null,null,null,null,null,null,null,null,null,null,null,null,null,"20250626 113200",22565.25,22565.75,22562.25,22564.75,178,3.5]
[null,null,null,null,null,null,null,null,null,null,null,null,null,null,null,null,null,null,null,null,null,null,null,null,null,null,null,null,null,null,null,null,null,null,null,"20250626 113300",22564.75,22566,22563,22563.75,120,3]
[null,null,null,null,null,null,null,null,null,null,null,null,null,null,null,null,null,null,null,null,null,null,null,null,null,null,null,null,null,null,null,null,null,null,null,"20250626 113400",22563.5,22566.5,22562.25,22566,165,4.25]
[null,null,null,null,null,null,null,null,null,null,null,null,null,null,null,null,null,null,null,null,null,null,null,null,null,null,null,null,null,null,null,null,null,null,null,"20250626 113500",22566.25,22568,22565.25,22566.75,182,2.75]
[null,null,null,null,null,null,null,null,null,null,null,null,null,null,null,null,null,null,null,null,null,null,null,null,null,null,null,null,null,null,null,null,null,null,null,"20250626 113600",22567,22572,22566.75,22570,409,5.25]
[null,null,null,null,null,null,null,null,null,null,null,null,null,null,null,null,null,null,null,null,null,null,null,null,null,null,null,null,null,null,null,null,null,null,null,"20250626 113700",22570.25,22570.75,22568,22568.75,109,2.75]
[null,null,null,null,null,null,null,null,null,null,null,null,null,null,null,null,null,null,null,null,null,null,null,null,null,null,null,null,null,null,null,null,null,null,null,"20250626 113800",22569,22569.5,22566.75,22566.75,91,2.75]
[null,null,null,null,null,null,null,null,null,null,null,null,null,null,null,null,null,null,null,null,null,null,null,null,null,null,null,null,null,null,null,null,null,null,null,"20250626 113900",22566.5,22566.5,22560.5,22562.25,249,6.25]
[null,null,null,null,null,null,null,null,null,null,null,null,null,null,null,null,null,null,null,null,null,null,null,null,null,null,null,null,null,null,null,null,null,null,null,"20250626 114000",22562.25,22563.25,22560.25,22561.25,107,3]

{"sheet":"Locked","index":2,"n_rows":2,"n_cols":13,"rows_kept":2,"cut":false,"hidden":true,"merged":[[0,0,24,0],[0,12,24,12]]}
["Log","Datetime","Trade ID","Category","Instrument","PnL","ROI%","Daily PnL","Daily ROI%","Gross Equity","Net Equity","Image","Links"]
[null,"06-16-2025-12-46-00",null,null,null,null,null,null,null,9896.0400000000009,{"$f":"J2+500","v":10396.040000000001}]